{"text_format":"1","workbook":"xlsx","n_sheets":11,"sheets":["X5 CALCULATOR","DEURBLAD","TECHNISCHE INFORMATIE","MAATWERK","STAANDERS","MIDDENSTAANDERS","RAIL","AFWERKING","GREPEN","OPMERKINGEN","INVULVELDEN"],"not_rendered":{"charts":0,"images":19,"macros":1,"external_links":0,"defined_names":0,"comments":1,"pivot_tables":0},"unopened":[],"bounds":{"document_bytes":16777216,"sheet_cells":100000,"rows_first":2000,"rows_last":500,"rows_between":2000,"halvings":0,"cell_chars":16384,"cell_head_chars":4096},"cells_cut":0,"cells_raw":0,"read":"whole","date_system":"1900"}

{"sheet":"X5 CALCULATOR","index":0,"n_rows":47,"n_cols":9,"rows_kept":47,"cut":false,"hidden":false,"merged":[[42,7,42,8],[43,7,43,8],[23,6,23,8],[24,6,25,8],[19,6,19,8],[20,6,20,8]]}
[null,null,null,null,"X5 Bestelformulier "]
[]
[]
[null,null,null,null,"Rail + beslag"]
[null,null,null,null,"…"]
[null,null,null,null,"Beplating? ",null,"Aantal sets X5"]
[null,null,null,null,"…",null,1]
[null,null,null,null,"Hout of glas?"]
[null,{"$f":"IF(AND(E5=\"Hawa\",E9=\"Glas\"),OPMERKINGEN!B33,\"\")","v":""},null,null,"…"]
[null,null,null,null,"Enkele of dubbele deur? "]
[null,{"$f":"IF(AND(E17>2315,E23=75,E9=\"Hout\",OR(E7=\"Enkele (<2315) X5\",E7=\"Dubbel X5D\")),OPMERKINGEN!B7,\"\")","v":""},null,null,"…"]
[null,{"$f":"IF(AND(E7=\"Enkele (<2315) X5\",E17>2315,E13=\"Pocket\"),OPMERKINGEN!B2,IF(AND(E7=\"Dubbel X5D\",E17>3015,E13=\"Pocket\"),OPMERKINGEN!B3,IF(AND(E7=\"Enkele (<2315) X5\",E17>2415,E13=\"Wall\"),OPMERKINGEN!B4,\"\")))","v":""},null,null,"Pocket of WALL? "]
[null,{"$f":"IF(E19>1230,OPMERKINGEN!B6,\"\")","v":""},null,null,"…"]
[null,null,null,null,"Afwerking? "]
[null,{"$f":"IF(AND(E9=\"Glas\",E23=\"50\",E19>1030),OPMERKINGEN!B9,IF(AND(E9=\"Hout\",E23=\"50\"),OPMERKINGEN!B9,\"\"))","v":""},null,null,"…"]
[null,null,null,null,"Hoogte deurblad? (mm)"]
[null,{"$f":"IF(AND(E19>1030,E7=\"Enkele (<2315) X5\"),OPMERKINGEN!B29,\"\")","v":""},null,null,null,{"$f":"IF(E17=\"\",\"\",IF(E17<1000,\">1000 mm\",\"\"))","v":""}]
[null,{"$f":"IF(AND(E7=\"Enkele (<2315) X5\",E23=\"75\",E17>2315),OPMERKINGEN!B12,IF(AND(E7=\"Enkele (<2315) X5\",E23=\"75\",E17>2315,E15=\"XINNIX\"),OPMERKINGEN!B13,IF(AND(E7=\"Dubbel X5D\",E23=\"75\",E17>3015,E15=\"XINNIX\",AND(E7=\"Dubbel X5\",E23=\"100\",E17>3015,E15=\"XINNIX\",AND(OR(E7=\"Dubbel X5D32\",E7=\"Dubbel X5D50\"),E23=\"75\",E17>3015,E15=\"XINNIX\"))),OPMERKINGEN!B14,IF(AND(E7=\"Enkele (<2315) X5\",E23=\"100\",E17>3015,E15=\"PURE\",AND(E7=\"Dubbel X5D\",E23=\"75\",E17>3015,E15=\"PURE\",AND(E7=\"Dubbel X5D\",E23=\"100\",E17>3015,E15=\"PURE\"))),OPMERKINGEN!B15,IF(AND(E7=\"Enkele (<2315) X5\",E23=\"75\",E17>2315,E9=\"Glas\",AND(E7=\"Dubbel X5D\",E23=\"50\",E17>2315,E9=\"Glas\")),OPMERKINGEN!B16,IF(AND(OR(E7=\"Dubbel X5D32\",E7=\"Dubbel X5D50\"),E23=\"50\",E17>2715,E9=\"Glas\"),OPMERKINGEN!B17,\"\"))))))","v":""},null,null,"Breedte deurblad? (mm)"]
[null,{"$f":"IF(AND(E5=\"Xinnix Double Soft Slide\",E23=50),OPMERKINGEN!B34,\"\")","v":""},null,null,null,{"$f":"IF(E19=\"\",\"\",IF(AND(E5=\"Xinnix\",E19<530),\"≥ 530 mm\",IF(AND(E5=\"Hawa\",E19<800),\"≥ 800 mm\",IF(AND(E5=\"Xinnix Double Soft Slide\",E19<680),\"≥ 680 mm\",\"\"))))","v":""}]
[null,{"$f":"IF(AND(E23=50,E9=\"Hout\"),OPMERKINGEN!B18,\"\")","v":""},null,null,"Dikte deurblad? ",null,"Referentie"]
[null,{"$f":"IF(E23=50,OPMERKINGEN!B28,\"\")","v":""},null,null,"…",{"$f":"IF(AND(E23=75,E21>40,E9=\"Hout\"),OPMERKINGEN!B25,\"\")","v":""}]
[null,{"$f":"IF(AND(E9=\"Glas\",OR(E21=35,E21=40,E21=43,E21=45,E21=50,E21=55,E21=60)),OPMERKINGEN!B23,\"\")","v":""},null,null,"Metalstud? "]
[null,{"$f":"IF(E17>3515,OPMERKINGEN!B20,\"\")","v":""},null,null,"…"]
[null,{"$f":"IF(E19>3030,OPMERKINGEN!B21,\"\")","v":""},null,null,"Afgewerkte muurdikte",null,"Opmerkingen"]
[null,{"$f":"IF(AND(E9=\"Glas\",E23=50,E7=\"Enkel (<2315) X5\"),OPMERKINGEN!B24,\"\")","v":""},null,null,{"$f":"IF(E13=\"Wall\",IF(E7=\"Enkele (<2315) X5\",E23+12.5,IF(E7=\"Dubbel X5D\",E23+25,IF(E7=\"Dubbel X5D32\",E23+30.5,IF(E7=\"Dubbel X5D50\",E23+50,\"\")))),IF(E7=\"Enkele (<2315) X5\",E23+25,IF(E7=\"Dubbel X5D\",E23+50,IF(E7=\"Dubbel X5D32\",E23+64,IF(E7=\"Dubbel X5D50\",E23+100,\"\")))))","v":""}]
[null,{"$f":"IF(AND(E11=\"Enkele\",E27=\"Symmetrie\"),\"Symmetrie is enkel mogelijk bij een dubbele deur\",IF(AND(E15=\"PURE\",E27=\"Symmetrie\"),\"Symmetrie is enkel mogelijk met Xinnix afwerking\",IF(AND(E7=\"Enkele (<2315) X5\",E27=\"Symmetrie\"),\"Symmetrie is enkel mogelijk bij dubbele beplating\",\"\")))","v":""},null,null,"Parallel(1) of symmetrie(2) systeem "]
[null,{"$f":"IF(AND(E5=\"Hawa\",E11=\"Dubbele\"),OPMERKINGEN!B32,\"\")","v":""},null,null,"Nee"]
[]
[]
[null,"Product","code",null,"Omschrijving","Aantal boxen voor 1 set","Totaal aantal boxen","Prijs","Totaal"]
[]
[null,"Staanders",{"$f":"IF(E17=\"\",\"\",IF(E17>=3515,\"\",CONCATENATE(IF(E7=\"Enkele (<2315) X5\",\"X5\",IF(E7=\"Dubbel X5D\",\"X5D\",IF(E7=\"Dubbel X5D32\",\"X5D32\",IF(E7=\"Dubbel X5D50\",\"X5D50\",\"\")))),\"-\",IF(E13=\"Wall\",\"WALL\",\"\"),IF(E13=\"Wall\",\"\",IF(E17<=1972,1972,IF(E17<=2015,2015,IF(E17<=2040,2040,IF(E17<=2115,2115,IF(E17<=2315,2315,IF(E17<=2415,2415,IF(E17<=2715,2715,IF(E17<=3015,3015,IF(E17<=3515,3515,\"\")))))))))),IF(E13=\"Pocket\",\"\",IF(AND(E17<=2115,E7=\"Enkele (<2315) X5\"),2115,IF(E17<=2415,2415,IF(E17<=2715,2715,IF(E17<=3015,3015,IF(E17<=3515,3515,\"\")))))))))","v":""},null,{"$f":"IF(C32=\"\",\"\",VLOOKUP(C32,STAANDERS!C2:G59,4,FALSE))","v":""},{"$f":"IF(C32=\"\",\"\",IF(E11=\"Enkele\",1,2))","v":""},{"$f":"IF(F32=\"\",\"\",G7*F32)","v":""},{"$f":"IF(C32=\"\",\"\",VLOOKUP(C32,STAANDERS!C2:G59,5,FALSE))","v":""},{"$f":"IF(C32=\"\",\"\",H32*G32)","v":""}]
[null,"Extra middenstaanders",{"$f":"IF(E19=\"…\",\"\",IF(E19<1231,\"\",CONCATENATE(\"X5D/XM\",IF(E17<=2115,2115,IF(E17<=2315,2315,IF(E17<=2715,2715,IF(E17<=3015,3015,IF(E17<=3515,3515,))))))))","v":""},null,{"$f":"IF(C33=\"\",\"\",VLOOKUP(C33,MIDDENSTAANDERS!B2:F6,3,FALSE))","v":""},{"$f":"IF(C33=\"\",\"\",IF(AND(E19<=1830,E11=\"Enkele\"),1, IF(AND(E19<=1830,E11=\"Dubbele\"),2, IF(AND(E19<=2430,E11=\"Enkele\"),2, IF(AND(E19<=2430,E11=\"Dubbele\"),4, IF(AND(E19<=3030,E11=\"Enkele\"),3, IF(AND(E19<=3030,E11=\"Dubbele\"),6, \"\")))))))","v":""},{"$f":"IF(F33=\"\",\"\",G7*F33)","v":""},{"$f":"IF(C33=\"\",\"\",VLOOKUP(C33,MIDDENSTAANDERS!B2:F6,4,FALSE))","v":""},{"$f":"IF(C33=\"\",\"\",H33*F33)","v":""}]
[null,"Rail + garnituur",{"$f":"IF(E19=\"\",\"\",CONCATENATE(IF(AND(E9=\"Glas\",E19>1530),\"\",\"X5\"),IF(AND(E9=\"Glas\",E19>1530),\"\",\"-\"),IF(AND(E5=\"Hawa\",E19<1531,E9=\"Hout\"), \"H100-\",\"\"),IF(E5=\"Xinnix Double Soft Slide\",\"DS-\",\"\"),IF(OR(E19=830,E19=930),0,\"\"),IF(E19=830,830,IF(E19=930,930,IF(E19<=1030,1030,IF(E19<=1230,1230,IF(E19<=1530,1530,IF(E19<=2030,2030,IF(AND(E9=\"Hout\",E19<=2430),2430,IF(AND(E9=\"Hout\",E19<=3030),3030,IF(AND(E9=\"Glas\",E19>1530),\"Op aanvraag, mail sales@xinnix.eu\",\"\"))))))))),IF(AND(E9=\"Glas\",E19>1530),\"\",\"\"),IF(AND(E9=\"Glas\",E19>1530),\"\",\".\"),IF(AND(E9=\"Glas\",E19>1530),\"\",E23),IF(AND(E9=\"Glas\",E19<2031),\"GLC\",\"\")))","v":""},null,{"$f":"IF(OR(C34=\"\",C34=\"Op aanvraag, mail sales@xinnix.eu\"),\"\",VLOOKUP(C34,RAIL!B2:E50,2,FALSE))","v":""},{"$f":"IF(OR(C34=\"\",C34=\"Op aanvraag, mail sales@xinnix.eu\"),\"\",IF(E11=\"Enkele\",1,2))","v":""},{"$f":"IF(F34=\"\",\"\",G7*F34)","v":""},{"$f":"IF(OR(C34=\"\",C34=\"Op aanvraag, mail sales@xinnix.eu\"),\"\",VLOOKUP(C34,RAIL!B2:E50,4,FALSE))","v":""},{"$f":"IF(OR(C34=\"\",C34=\"Op aanvraag, mail sales@xinnix.eu\"),\"\",H34*G34)","v":""}]
[]
[]
[null,"Afwerkset",{"$f":"IF(OR(E17=\"\",AND(E5=\"Hawa\",E11=\"Dubbele\")),\"\",CONCATENATE(IF(E15=\"PURE\",\"X5\",IF(OR(E7=\"Enkele (<2315) X5\",AND(E7=\"Dubbel X5D\",E23=50,E9=\"Glas\")),\"X5\",IF(E7=\"Dubbel X5D\",\"X5D\",IF(E7=\"Dubbel X5D32\",\"X5D32\",IF(E7=\"Dubbel X5D50\",\"X5D50\",\"\"))))),\"-\",IF(AND(E5=\"Hawa\",E19<1531,E9=\"Hout\",E15=\"PURE\"), \"H100-\",\"\"),IF(E15=\"XINNIX\",\"XINNIX\",\"PURE\"),IF(AND(E9=\"Glas\",E11=\"Enkele\"),\"GL\",\"\"),IF(AND(E11=\"Enkele\",E17<=2315),\"-23.\",IF(AND(E11=\"Enkele\",E17<=2715),\"-27.\",IF(AND(E11=\"Enkele\",E17<=3015),\"-30.\",IF(AND(E11=\"Enkele\",E17<=3515),\"-35.\",\"\")))),IF(E11=\"Dubbele\",\"/D\",\"\"),IF(AND(E11=\"Enkele\",E13=\"Pocket\"),IF(E25<101,100,  IF(E25<115,114, IF(E25<126,125, IF(E25<140,139, IF(E25<151,150, IF(E25<165,164,IF(E25<176,175, IF(E25<201,200,\"\")))))))),\"\"),IF(AND(E11=\"Enkele\",E13=\"Wall\",E7=\"Dubbel X5D50\"),IF(E25<101,150,IF(E25<126,175,IF(E25<151,200,\"\"))),\"\"),IF(AND(E11=\"Enkele\",E13=\"Wall\",OR(E7=\"Enkele (<2315)X5\",E7=\"Dubbel X5D\",E7=\"Dubbel X5D32\",)), IF(E25<76,100, IF(E25<81,114, IF(E25<88,100, IF(E25<101,125, IF(E25<106,139, IF(E25<113,125, IF(E25<126,150, IF(E25<131,164,IF(E25<137,175, IF(E25<162,200,\"\")))))))))), \"\"),IF(AND(E11=\"Dubbele\",E19<2400,E15=\"XINNIX\"),\".1\",IF(AND(E11=\"Dubbele\",E19<=4000,E15=\"XINNIX\"),\".2\",\"\")),IF(AND(E11=\"Enkele\",E19<=1230,E15=\"XINNIX\"),\"/1\",IF(AND(E11=\"Enkele\",E19<=2030,E15=\"XINNIX\"),\"/2\",IF(AND(E11=\"Enkele\",E19<=3030,E15=\"XINNIX\"),\"/3\",IF(AND(E5=\"Hawa\",E21=35),\"/40\",IF(AND(E5=\"Hawa\",E21=40),\"/40\",IF(AND(E5=\"Hawa\",E21=43),\"/40\",IF(AND(E5=\"Hawa\",E21=45),\"/50\",IF(AND(E5=\"Hawa\",E21=50),\"/50\",IF(AND(E5=\"Hawa\",E21=60),\"/60\",\"\")))))))))))","v":""},null,{"$f":"IF(C37=\"\",\"\",VLOOKUP(C37,AFWERKING!B1:D274,2,FALSE))","v":""},{"$f":"IF(C37=\"\",\"\",1)","v":""},{"$f":"IF(F37=\"\",\"\",G7*F37)","v":""},{"$f":"IF(C37=\"\",\"\",VLOOKUP(C37,AFWERKING!B1:D274,3,FALSE))","v":""},{"$f":"IF(C37=\"\",\"\",H37*G37)","v":""}]
[]
[null,"Extra ",{"$f":"IF(OR(E27=\"Parallel\",E27=\"Symmetrie\"),\"Parallel/symmetrie systeem op aanvraag, sales@xinnix.eu.\",\"\")","v":""},null,{"$f":"IF(OR(C39=\"Enkel mogelijk bij een dubbele deur\",C39=\"Enkel mogelijk bij Xinnix afwerking\",C39=\"Parallel/symmetrie systeem op aanvraag, sales@xinnix.eu.\",C39=\"\"),\"\",VLOOKUP(C39,RAIL!I2:L5,2,FALSE))","v":""},{"$f":"IF(E39=\"\",\"\",1)","v":""},{"$f":"IF(F39=\"\",\"\",F39*G5)","v":""},{"$f":"IF(E39=\"\",\"\",VLOOKUP(C39,RAIL!I2:L5,3,FALSE))","v":""},{"$f":"IF(H39=\"\",\"\",H39*G39)","v":""}]
[]
[null,"Schuifdeurgreep","Kies hier uw greep",null,{"$f":"IF(OR(C41=\"\",C41=\"Kies hier uw greep\"),\"\",VLOOKUP(C41,GREPEN!B2:D46,2,FALSE))","v":""},{"$f":"IF(C41=\"\",\"\",1)","v":1},"Vul hier zelf een aantal in.",{"$f":"IF(OR(C41=\"\",C41=\"Kies hier uw greep\"),\"\",VLOOKUP(C41,GREPEN!B2:D46,3,FALSE))","v":""},{"$f":"IF(OR(C41=\"\",C41=\"Kies hier uw greep\"),\"\",H41*G41)","v":""}]
[]
[null,null,null,null,null,null,null,"Totaal"]
[null,null,null,null,null,null,null,{"$f":"SUM(I32:I41)","v":0}]
[]
[null,"Prijzen uit prijslijst 2024"]
[null,"Onder voorbehoud van systeem en berekeningsfouten"]

{"sheet":"DEURBLAD","index":1,"n_rows":18,"n_cols":15,"rows_kept":18,"cut":false,"hidden":false,"merged":[[3,1,3,4],[3,6,3,9],[3,11,3,14],[11,1,11,4],[11,6,11,9],[11,11,11,14]]}
[]
[]
[]
[null,"HOUT -  AFWERKING XINNIX",null,null,null,null,"HOUT -  AFWERKING XINNIX",null,null,null,null,"HOUT -  AFWERKING XINNIX"]
[null,"DEURBLAD",null,"HOOGTE","BREEDTE",null,"DEURBLAD",null,"HOOGTE","BREEDTE",null,"DEURBLAD",null,"HOOGTE","BREEDTE"]
[null,null,null,2115,930,null,null,null,{"$f":"I8-90","v":2010},{"$f":"(J8-10)/2","v":445},null,null,null,{"$f":"N10+5","v":2115},{"$f":"O10+30","v":930}]
[null,"CONSTRUCTIE OPENING",null,"HOOGTE","BREEDTE",null,"CONSTRUCTIE OPENING",null,"HOOGTE","BREEDTE",null,"CONSTRUCTIE OPENING",null,"HOOGTE","BREEDTE"]
[null,null,null,{"$f":"D6+90","v":2205},{"$f":"(E6*2)+10","v":1870},null,null,null,2100,900,null,null,null,{"$f":"N10+95","v":2205},{"$f":"((O10+30)*2)+10","v":1870}]
[null,"VRIJE DOORGANG",null,"HOOGTE","BREEDTE",null,"VRIJE DOORGANG",null,"HOOGTE","BREEDTE",null,"VRIJE DOORGANG",null,"HOOGTE","BREEDTE"]
[null,null,null,{"$f":"D6+8-(95-82)","v":2110},{"$f":"E6-30","v":900},null,null,null,{"$f":"I8-95","v":2005},{"$f":"(J8-10)/2-30","v":415},null,null,null,2110,900]
[]
[null,"HOUT -  AFWERKING PURE",null,null,null,null,"HOUT -  AFWERKING PURE",null,null,null,null,"HOUT -  AFWERKING PURE"]
[null,"DEURBLAD",null,"HOOGTE","BREEDTE",null,"DEURBLAD",null,"HOOGTE","BREEDTE",null,"DEURBLAD",null,"HOOGTE","BREEDTE"]
[null,null,null,3286,960,null,null,null,{"$f":"I16-8-4-58","v":2565},{"$f":"(J16-10)/2","v":930},null,null,null,{"$f":"N18-8-4","v":2588},{"$f":"O18+30","v":1680}]
[null,"CONSTRUCTIE OPENING",null,"HOOGTE","BREEDTE",null,"CONSTRUCTIE OPENING",null,"HOOGTE","BREEDTE",null,"CONSTRUCTIE OPENING",null,"HOOGTE","BREEDTE"]
[null,null,null,{"$f":"D14+70","v":3356},{"$f":"(E14*2)+10","v":1930},null,null,null,2635,1870,null,null,null,{"$f":"N18+58","v":2658},{"$f":"((O18+30)*2)+10","v":3370}]
[null,"VRIJE DOORGANG",null,"HOOGTE","BREEDTE",null,"VRIJE DOORGANG",null,"HOOGTE","BREEDTE",null,"VRIJE DOORGANG",null,"HOOGTE","BREEDTE"]
[null,null,null,{"$f":"D14+8+4","v":3298},{"$f":"E14-30","v":930},null,null,null,{"$f":"I16-58","v":2577},{"$f":"(J16-10)/2-30","v":900},null,null,null,2600,1650]

{"sheet":"TECHNISCHE INFORMATIE","index":2,"n_rows":48,"n_cols":22,"rows_kept":48,"cut":false,"hidden":false,"merged":[[27,9,27,12],[44,9,44,12],[41,9,41,10],[41,11,41,12],[42,9,42,10],[42,11,42,12],[43,9,43,10],[43,11,43,12]]}
[]
[null,"Beplating",null,null,null,null,null,null,null,"Standaard of wall",null,null,null,null,null,null,null,"Afwerking",null,null,null,"Types"]
[]
[null,"X5",null,null,null,null,null,null,null,"Pocket",null,null,null,null,null,null,null,"Xinnix",null,null,null,"X5"]
[]
[]
[]
[]
[]
[]
[null,"X5D",null,null,null,null,null,null,null,null,null,null,null,null,null,null,null,null,null,null,null,"X5 XXL"]
[]
[]
[]
[null,null,null,null,null,null,null,null,null,"WALL",null,null,null,null,null,null,null,"Pure"]
[]
[null,null,null,null,null,null,null,null,null,null,null,null,null,null,null,null,null,null,null,null,null,"X5 dubbel"]
[null,"X5D32"]
[]
[]
[]
[]
[]
[null,null,null,null,null,null,null,null,null,null,null,null,null,null,null,null,null,null,null,null,null,"X5 synchroon (op aanvraag, sales@xinnix.eu)"]
[]
[]
[]
[null,"X5D50",null,null,null,null,null,null,null,"Hawa + Xinnix Double Soft Slide"]
[]
[]
[null,null,null,null,null,null,null,null,null,null,null,null,null,null,null,null,null,null,null,null,null,"X5 parallel (op aanvraag, sales@xinnix.eu)"]
[]
[]
[]
[]
[]
[]
[null,null,null,null,null,null,null,null,null,null,null,null,null,null,null,null,null,null,null,null,null,"X5 angle"]
[]
[]
[]
[null,null,null,null,null,null,null,null,null,"A",null,"B"]
[null,null,null,null,null,null,null,null,null,"Breedte deur (mm)",null,"Hoogte deur (mm)"]
[]
[null,null,null,null,null,null,null,null,null,{"$f":"IF(L48>M48,\"Uitneembare rail\",\"Niet uitneembare rail\")","v":"Niet uitneembare rail"}]
[]
[null,null,null,null,null,null,null,null,null,"A","B","C"]
[null,null,null,null,null,null,null,null,null,{"$f":"(J44*J44)/1000000","v":0},{"$f":"(L44*L44)/1000000","v":0},{"$f":"SQRT(J48+K48)","v":0},{"$f":"(J44*2)/1000","v":0}]

{"sheet":"MAATWERK","index":3,"n_rows":176,"n_cols":4,"rows_kept":176,"cut":false,"hidden":true,"merged":[]}
[null,"X5D-20.15B100","XINNIX X5D Schuifdeursysteem B 1500  H 2000 Pr 100 Md 150",758.54]
[null,"X5D-20.16B100","XINNIX XD5 Schuifdeursysteem B 1600  H 2000 Pr 100 Md 150",758.54]
[null,"X5D-20.17B100","XINNIX X5D Schuifdeursysteem B 1700  H 2000 Pr 100 Md 150",758.54]
[null,"X5D-20.18B100","XINNIX X5D Schuifdeursysteem B 1800  H 2000 Pr 100 Md 150",758.54]
[null,"X5D-20.19B100","XINNIX X5D Schuifdeursysteem B 1900  H 2000 Pr 100 Md 150",933.59]
[null,"X5D-20.20B100","XINNIX X5D Schuifdeursysteem B 2000  H 2000 Pr 100 Md 150",933.59]
[null,"X5D-20.21B100","XINNIX X5D Schuifdeursysteem B 2100  H 2000 Pr 100 Md 150",1060.9000000000001]
[null,"X5D-20.22B100","XINNIX X5D Schuifdeursysteem B 2200  H 2000 Pr 100 Md 150",1060.9000000000001]
[null,"X5D-20.23B100","XINNIX X5D Schuifdeursysteem B 2300  H 2000 Pr 100 Md 150",1060.9000000000001]
[null,"X5D-20.24B100","XINNIX X5D Schuifdeursysteem B 2400  H 2000 Pr 100 Md 150",1060.9000000000001]
[null,"X5D-20.25B100","XINNIX X5D Schuifdeursysteem B 2500  H 2000 Pr 100 Md 150",1363.26]
[null,"X5D-20.26B100","XINNIX X5D Schuifdeursysteem B 2600  H 2000 Pr 100 Md 150",1363.26]
[null,"X5D-20.27B100","XINNIX X5D Schuifdeursysteem B 2700  H 2000 Pr 100 Md 150",1363.26]
[null,"X5D-20.28B100","XINNIX X5D Schuifdeursysteem B 2800  H 2000 Pr 100 Md 150",1363.26]
[null,"X5D-20.29B100","XINNIX X5D Schuifdeursysteem B 2900  H 2000 Pr 100 Md 150",1363.26]
[null,"X5D-20.30B100","XINNIX X5D Schuifdeursysteem B 3000  H 2000 Pr 100 Md 150",1363.26]
[null,"X5D-21.15B100","XINNIX X5D Schuifdeursysteem B 1500  H 2100 Pr 100 Md 150",758.54]
[null,"X5D-21.16B100","XINNIX X5D Schuifdeursysteem B 1600  H 2100 Pr 100 Md 150",758.54]
[null,"X5D-21.17B100","XINNIX X5D Schuifdeursysteem B 1700  H 2100 Pr 100 Md 150",758.54]
[null,"X5D-21.18B100","XINNIX X5D Schuifdeursysteem B 1800  H 2100 Pr 100 Md 150",758.54]
[null,"X5D-21.19B100","XINNIX X5D Schuifdeursysteem B 1900  H 2100 Pr 100 Md 150",933.59]
[null,"X5D-21.20B100","XINNIX X5D Schuifdeursysteem B 2000  H 2100 Pr 100 Md 150",933.59]
[null,"X5D-21.21B100","XINNIX X5D Schuifdeursysteem B 2100  H 2100 Pr 100 Md 150",1060.9000000000001]
[null,"X5D-21.22B100","XINNIX X5D Schuifdeursysteem B 2200  H 2100 Pr 100 Md 150",1060.9000000000001]
[null,"X5D-21.23B100","XINNIX X5D Schuifdeursysteem B 2300  H 2100 Pr 100 Md 150",1060.9000000000001]
[null,"X5D-21.24B100","XINNIX X5D Schuifdeursysteem B 2400  H 2100 Pr 100 Md 150",1060.9000000000001]
[null,"X5D-21.25B100","XINNIX X5D Schuifdeursysteem B 2500  H 2100 Pr 100 Md 150",1363.26]
[null,"X5D-21.26B100","XINNIX X5D Schuifdeursysteem B 2600  H 2100 Pr 100 Md 150",1363.26]
[null,"X5D-21.27B100","XINNIX X5D Schuifdeursysteem B 2700  H 2100 Pr 100 Md 150",1363.26]
[null,"X5D-21.28B100","XINNIX X5D Schuifdeursysteem B 2800  H 2100 Pr 100 Md 150",1363.26]
[null,"X5D-21.29B100","XINNIX X5D Schuifdeursysteem B 2900  H 2100 Pr 100 Md 150",1363.26]
[null,"X5D-21.30B100","XINNIX X5D Schuifdeursysteem B 3000  H 2100 Pr 100 Md 150",1363.26]
[null,"X5D-23.15B100","XINNIX X5D Schuifdeursysteem B 1500 H 2300 Pr 100 Md 150",779.76]
[null,"X5D-23.16B100","XINNIX X5D Schuifdeursysteem B 1600 H 2300 Pr 100 Md 150",779.76]
[null,"X5D-23.17B100","XINNIX X5D Schuifdeursysteem B 1700 H 2300 Pr 100 Md 150",779.76]
[null,"X5D-23.18B100","XINNIX X5D Schuifdeursysteem B 1800 H 2300 Pr 100 Md 150",779.76]
[null,"X5D-23.19B100","XINNIX X5D Schuifdeursysteem B 1900 H 2300 Pr 100 Md 150",965.42]
[null,"X5D-23.20B100","XINNIX X5D Schuifdeursysteem B 2000 H 2300 Pr 100 Md 150",965.42]
[null,"X5D-23.21B100","XINNIX X5D Schuifdeursysteem B 2100 H 2300 Pr 100 Md 150",1124.55]
[null,"X5D-23.22B100","XINNIX X5D Schuifdeursysteem B 2200 H 2300 Pr 100 Md 150",1124.55]
[null,"X5D-23.23B100","XINNIX X5D Schuifdeursysteem B 2300 H 2300 Pr 100 Md 150",1124.55]
[null,"X5D-23.24B100","XINNIX X5D Schuifdeursysteem B 2400 H 2300 Pr 100 Md 150",1124.55]
[null,"X5D-23.25B100","XINNIX X5D Schuifdeursysteem B 2500 H 2300 Pr 100 Md 150",1437.52]
[null,"X5D-23.26B100","XINNIX X5D Schuifdeursysteem B 2600 H 2300 Pr 100 Md 150",1437.52]
[null,"X5D-23.27B100","XINNIX X5D Schuifdeursysteem B 2700 H 2300 Pr 100 Md 150",1437.52]
[null,"X5D-23.28B100","XINNIX X5D Schuifdeursysteem B 2800 H 2300 Pr 100 Md 150",1437.52]
[null,"X5D-23.29B100","XINNIX X5D Schuifdeursysteem B 2900 H 2300 Pr 100 Md 150",1437.52]
[null,"X5D-23.30B100","XINNIX X5D Schuifdeursysteem B 3000 H 2300 Pr 100 Md 150",1437.52]
[null,"X5D-27.15B100","XINNIX X5D Schuifdeursysteem B 1500 H 2700 Pr 100 Md 150",960.11]
[null,"X5D-27.16B100","XINNIX X5D Schuifdeursysteem B 1600 H 2700 Pr 100 Md 150",960.11]
[null,"X5D-27.17B100","XINNIX X5D Schuifdeursysteem B 1700 H 2700 Pr 100 Md 150",960.11]
[null,"X5D-27.18B100","XINNIX X5D Schuifdeursysteem B 1800 H 2700 Pr 100 Md 150",960.11]
[null,"X5D-27.19B100","XINNIX X5D Schuifdeursysteem B 1900 H 2700 Pr 100 Md 150",1336.73]
[null,"X5D-27.20B100","XINNIX X5D Schuifdeursysteem B 2000 H 2700 Pr 100 Md 150",1336.73]
[null,"X5D-27.21B100","XINNIX X5D Schuifdeursysteem B 2100 H 2700 Pr 100 Md 150",1336.73]
[null,"X5D-27.22B100","XINNIX X5D Schuifdeursysteem B 2200 H 2700 Pr 100 Md 150",1336.73]
[null,"X5D-27.23B100","XINNIX X5D Schuifdeursysteem B 2300 H 2700 Pr 100 Md 150",1336.73]
[null,"X5D-27.24B100","XINNIX X5D Schuifdeursysteem B 2400 H 2700 Pr 100 Md 150",1336.73]
[null,"X5D-27.25B100","XINNIX X5D Schuifdeursysteem B 2500 H 2700 Pr 100 Md 150",1713.35]
[null,"X5D-27.26B100","XINNIX X5D Schuifdeursysteem B 2600 H 2700 Pr 100 Md 150",1713.35]
[null,"X5D-27.27B100","XINNIX X5D Schuifdeursysteem B 2700 H 2700 Pr 100 Md 150",1713.35]
[null,"X5D-27.28B100","XINNIX X5D Schuifdeursysteem B 2800 H 2700 Pr 100 Md 150",1713.35]
[null,"X5D-27.29B100","XINNIX X5D Schuifdeursysteem B 2900 H 2700 Pr 100 Md 150",1713.35]
[null,"X5D-27.30B100","XINNIX X5D Schuifdeursysteem B 3000 H 2700 Pr 100 Md 150",1713.35]
[null,"X5D-30.15B100","XINNIX X5D Schuifdeursysteem B 1500 H 3000 Pr 100 Md 150",997.25]
[null,"X5D-30.16B100","XINNIX X5D Schuifdeursysteem B 1600 H 3000 Pr 100 Md 150",997.25]
[null,"X5D-30.17B100","XINNIX X5D Schuifdeursysteem B 1700 H 3000 Pr 100 Md 150",997.25]
[null,"X5D-30.18B100","XINNIX X5D Schuifdeursysteem B 1800 H 3000 Pr 100 Md 150",997.25]
[null,"X5D-30.19B100","XINNIX X5D Schuifdeursysteem B 1900 H 3000 Pr 100 Md 150",1262.47]
[null,"X5D-30.20B100","XINNIX X5D Schuifdeursysteem B 2000 H 3000 Pr 100 Md 150",1262.47]
[null,"X5D-30.21B100","XINNIX X5D Schuifdeursysteem B 2100 H 3000 Pr 100 Md 150",1389.78]
[null,"X5D-30.22B100","XINNIX X5D Schuifdeursysteem B 2200 H 3000 Pr 100 Md 150",1389.78]
[null,"X5D-30.23B100","XINNIX X5D Schuifdeursysteem B 2300 H 3000 Pr 100 Md 150",1389.78]
[null,"X5D-30.24B100","XINNIX X5D Schuifdeursysteem B 2400 H 3000 Pr 100 Md 150",1389.78]
[null,"X5D-30.25B100","XINNIX X5D Schuifdeursysteem B 2500 H 3000 Pr 100 Md 150",1782.31]
[null,"X5D-30.26B100","XINNIX X5D Schuifdeursysteem B 2600 H 3000 Pr 100 Md 150",1782.31]
[null,"X5D-30.27B100","XINNIX X5D Schuifdeursysteem B 2700 H 3000 Pr 100 Md 150",1782.31]
[null,"X5D-30.28B100","XINNIX X5D Schuifdeursysteem B 2800 H 3000 Pr 100 Md 150",1782.31]
[null,"X5D-30.29B100","XINNIX X5D Schuifdeursysteem B 2900 H 3000 Pr 100 Md 150",1782.31]
[null,"X5D-30.30B100","XINNIX X5D Schuifdeursysteem B 3000 H 3000 Pr 100 Md 150",1782.31]
[null,"X5D32-20.15B100","XINNIX X5D Schuifdeursysteem B 1500  H 2000 Pr 100 Md 150",790.37]
[null,"X5D32-20.16B100","XINNIX XD5 Schuifdeursysteem B 1600  H 2000 Pr 100 Md 150",790.37]
[null,"X5D32-20.17B100","XINNIX X5D Schuifdeursysteem B 1700  H 2000 Pr 100 Md 150",790.37]
[null,"X5D32-20.18B100","XINNIX X5D Schuifdeursysteem B 1800  H 2000 Pr 100 Md 150",790.37]
[null,"X5D32-20.19B100","XINNIX X5D Schuifdeursysteem B 1900  H 2000 Pr 100 Md 150",976.03]
[null,"X5D32-20.20B100","XINNIX X5D Schuifdeursysteem B 2000  H 2000 Pr 100 Md 150",976.03]
[null,"X5D32-20.21B100","XINNIX X5D Schuifdeursysteem B 2100  H 2000 Pr 100 Md 150",1103.3399999999999]
[null,"X5D32-20.22B100","XINNIX X5D Schuifdeursysteem B 2200  H 2000 Pr 100 Md 150",1103.3399999999999]
[null,"X5D32-20.23B100","XINNIX X5D Schuifdeursysteem B 2300  H 2000 Pr 100 Md 150",1103.3399999999999]
[null,"X5D32-20.24B100","XINNIX X5D Schuifdeursysteem B 2400  H 2000 Pr 100 Md 150",1103.3399999999999]
[null,"X5D32-20.25B100","XINNIX X5D Schuifdeursysteem B 2500  H 2000 Pr 100 Md 150",1416.3]
[null,"X5D32-20.26B100","XINNIX X5D Schuifdeursysteem B 2600  H 2000 Pr 100 Md 150",1416.3]
[null,"X5D32-20.27B100","XINNIX X5D Schuifdeursysteem B 2700  H 2000 Pr 100 Md 150",1416.3]
[null,"X5D32-20.28B100","XINNIX X5D Schuifdeursysteem B 2800  H 2000 Pr 100 Md 150",1416.3]
[null,"X5D32-20.29B100","XINNIX X5D Schuifdeursysteem B 2900  H 2000 Pr 100 Md 150",1416.3]
[null,"X5D32-20.30B100","XINNIX X5D Schuifdeursysteem B 3000  H 2000 Pr 100 Md 150",1416.3]
[null,"X5D32-21.15B100","XINNIX X5D32 Schuifdeursysteem B 1500  H 2100 Pr 100 Md 150",790.37]
[null,"X5D32-21.16B100","XINNIX X5D32 Schuifdeursysteem B 1600  H 2100 Pr 100 Md 150",790.37]
[null,"X5D32-21.17B100","XINNIX X5D32 Schuifdeursysteem B 1700  H 2100 Pr 100 Md 150",790.37]
[null,"X5D32-21.18B100","XINNIX X5D32 Schuifdeursysteem B 1800  H 2100 Pr 100 Md 150",790.37]
[null,"X5D32-21.19B100","XINNIX X5D32 Schuifdeursysteem B 1900  H 2100 Pr 100 Md 150",976.03]
[null,"X5D32-21.20B100","XINNIX X5D32 Schuifdeursysteem B 2000  H 2100 Pr 100 Md 150",976.03]
[null,"X5D32-21.21B100","XINNIX X5D32 Schuifdeursysteem B 2100  H 2100 Pr 100 Md 150",1103.3399999999999]
[null,"X5D32-21.22B100","XINNIX X5D32 Schuifdeursysteem B 2200  H 2100 Pr 100 Md 150",1103.3399999999999]
[null,"X5D32-21.23B100","XINNIX X5D32 Schuifdeursysteem B 2300  H 2100 Pr 100 Md 150",1103.3399999999999]
[null,"X5D32-21.24B100","XINNIX X5D32 Schuifdeursysteem B 2400  H 2100 Pr 100 Md 150",1103.3399999999999]
[null,"X5D32-21.25B100","XINNIX X5D32 Schuifdeursysteem B 2500  H 2100 Pr 100 Md 150",1416.3]
[null,"X5D32-21.26B100","XINNIX X5D32 Schuifdeursysteem B 2600  H 2100 Pr 100 Md 150",1416.3]
[null,"X5D32-21.27B100","XINNIX X5D32 Schuifdeursysteem B 2700  H 2100 Pr 100 Md 150",1416.3]
[null,"X5D32-21.28B100","XINNIX X5D32 Schuifdeursysteem B 2800  H 2100 Pr 100 Md 150",1416.3]
[null,"X5D32-21.29B100","XINNIX X5D32 Schuifdeursysteem B 2900  H 2100 Pr 100 Md 150",1416.3]
[null,"X5D32-21.30B100","XINNIX X5D32 Schuifdeursysteem B 3000  H 2100 Pr 100 Md 150",1416.3]
[null,"X5D32-23.15B100","XINNIX X5D32 Schuifdeursysteem B 1500 H 2300 Pr 100 Md 150",822.19]
[null,"X5D32-23.16B100","XINNIX X5D32 Schuifdeursysteem B 1600 H 2300 Pr 100 Md 150",822.19]
[null,"X5D32-23.17B100","XINNIX X5D32 Schuifdeursysteem B 1700 H 2300 Pr 100 Md 150",822.19]
[null,"X5D32-23.18B100","XINNIX X5D32 Schuifdeursysteem B 1800 H 2300 Pr 100 Md 150",822.19]
[null,"X5D32-23.19B100","XINNIX X5D32 Schuifdeursysteem B 1900 H 2300 Pr 100 Md 150",1007.86]
[null,"X5D32-23.20B100","XINNIX X5D32 Schuifdeursysteem B 2000 H 2300 Pr 100 Md 150",1007.86]
[null,"X5D32-23.21B100","XINNIX X5D32 Schuifdeursysteem B 2100 H 2300 Pr 100 Md 150",1166.99]
[null,"X5D32-23.22B100","XINNIX X5D32 Schuifdeursysteem B 2200 H 2300 Pr 100 Md 150",1166.99]
[null,"X5D32-23.23B100","XINNIX X5D32 Schuifdeursysteem B 2300 H 2300 Pr 100 Md 150",1166.99]
[null,"X5D32-23.24B100","XINNIX X5D32 Schuifdeursysteem B 2400 H 2300 Pr 100 Md 150",1166.99]
[null,"X5D32-23.25B100","XINNIX X5D32 Schuifdeursysteem B 2500 H 2300 Pr 100 Md 150",1490.56]
[null,"X5D32-23.26B100","XINNIX X5D32 Schuifdeursysteem B 2600 H 2300 Pr 100 Md 150",1490.56]
[null,"X5D32-23.27B100","XINNIX X5D32 Schuifdeursysteem B 2700 H 2300 Pr 100 Md 150",1490.56]
[null,"X5D32-23.28B100","XINNIX X5D32 Schuifdeursysteem B 2800 H 2300 Pr 100 Md 150",1490.56]
[null,"X5D32-23.29B100","XINNIX X5D32 Schuifdeursysteem B 2900 H 2300 Pr 100 Md 150",1490.56]
[null,"X5D32-23.30B100","XINNIX X5D32 Schuifdeursysteem B 3000 H 2300 Pr 100 Md 150",1490.56]
[null,"X5D32-27.15B100","XINNIX X5D32 Schuifdeursysteem B 1500 H 2700 Pr 100 Md 150",1076.81]
[null,"X5D32-27.16B100","XINNIX X5D32 Schuifdeursysteem B 1600 H 2700 Pr 100 Md 150",1076.81]
[null,"X5D32-27.17B100","XINNIX X5D32 Schuifdeursysteem B 1700 H 2700 Pr 100 Md 150",1076.81]
[null,"X5D32-27.18B100","XINNIX X5D32 Schuifdeursysteem B 1800 H 2700 Pr 100 Md 150",1076.81]
[null,"X5D32-27.19B100","XINNIX X5D32 Schuifdeursysteem B 1900 H 2700 Pr 100 Md 150",1262.47]
[null,"X5D32-27.20B100","XINNIX X5D32 Schuifdeursysteem B 2000 H 2700 Pr 100 Md 150",1262.47]
[null,"X5D32-27.21B100","XINNIX X5D32 Schuifdeursysteem B 2100 H 2700 Pr 100 Md 150",1389.78]
[null,"X5D32-27.22B100","XINNIX X5D32 Schuifdeursysteem B 2200 H 2700 Pr 100 Md 150",1389.78]
[null,"X5D32-27.23B100","XINNIX X5D32 Schuifdeursysteem B 2300 H 2700 Pr 100 Md 150",1389.78]
[null,"X5D32-27.24B100","XINNIX X5D32 Schuifdeursysteem B 2400 H 2700 Pr 100 Md 150",1389.78]
[null,"X5D32-27.25B100","XINNIX X5D32 Schuifdeursysteem B 2500 H 2700 Pr 100 Md 150",1771.7]
[null,"X5D32-27.26B100","XINNIX X5D32 Schuifdeursysteem B 2600 H 2700 Pr 100 Md 150",1771.7]
[null,"X5D32-27.27B100","XINNIX X5D32 Schuifdeursysteem B 2700 H 2700 Pr 100 Md 150",1771.7]
[null,"X5D32-27.28B100","XINNIX X5D32 Schuifdeursysteem B 2800 H 2700 Pr 100 Md 150",1771.7]
[null,"X5D32-27.29B100","XINNIX X5D32 Schuifdeursysteem B 2900 H 2700 Pr 100 Md 150",1771.7]
[null,"X5D32-27.30B100","XINNIX X5D32 Schuifdeursysteem B 3000 H 2700 Pr 100 Md 150",1771.7]
[null,"X5D32-30.15B100","XINNIX X5D32 Schuifdeursysteem B 1500 H 3000 Pr 100 Md 150",1135.1600000000001]
[null,"X5D32-30.16B100","XINNIX X5D32 Schuifdeursysteem B 1600 H 3000 Pr 100 Md 150",1135.1600000000001]
[null,"X5D32-30.17B100","XINNIX X5D32 Schuifdeursysteem B 1700 H 3000 Pr 100 Md 150",1135.1600000000001]
[null,"X5D32-30.18B100","XINNIX X5D32 Schuifdeursysteem B 1800 H 3000 Pr 100 Md 150",1135.1600000000001]
[null,"X5D32-30.19B100","XINNIX X5D32 Schuifdeursysteem B 1900 H 3000 Pr 100 Md 150",1320.82]
[null,"X5D32-30.20B100","XINNIX X5D32 Schuifdeursysteem B 2000 H 3000 Pr 100 Md 150",1320.82]
[null,"X5D32-30.21B100","XINNIX X5D32 Schuifdeursysteem B 2100 H 3000 Pr 100 Md 150",1448.13]
[null,"X5D32-30.22B100","XINNIX X5D32 Schuifdeursysteem B 2200 H 3000 Pr 100 Md 150",1448.13]
[null,"X5D32-30.23B100","XINNIX X5D32 Schuifdeursysteem B 2300 H 3000 Pr 100 Md 150",1448.13]
[null,"X5D32-30.24B100","XINNIX X5D32 Schuifdeursysteem B 2400 H 3000 Pr 100 Md 150",1448.13]
[null,"X5D32-30.25B100","XINNIX X5D32 Schuifdeursysteem B 2500 H 3000 Pr 100 Md 150",1856.58]
[null,"X5D32-30.26B100","XINNIX X5D32 Schuifdeursysteem B 2600 H 3000 Pr 100 Md 150",1856.58]
[null,"X5D32-30.27B100","XINNIX X5D32 Schuifdeursysteem B 2700 H 3000 Pr 100 Md 150",1856.58]
[null,"X5D32-30.28B100","XINNIX X5D32 Schuifdeursysteem B 2800 H 3000 Pr 100 Md 150",1856.58]
[null,"X5D32-30.29B100","XINNIX X5D32 Schuifdeursysteem B 2900 H 3000 Pr 100 Md 150",1856.58]
[null,"X5D32-30.30B100","XINNIX X5D32 Schuifdeursysteem B 3000 H 3000 Pr 100 Md 150",1856.58]
[null,"X5D32-35.15B100","XINNIX X5D32 Schuifdeursysteem B 1500 H 3500 Pr 100 Md 150",1220.04]
[null,"X5D32-35.16B100","XINNIX X5D32 Schuifdeursysteem B 1600 H 3500 Pr 100 Md 150",1220.04]
[null,"X5D32-35.17B100","XINNIX X5D32 Schuifdeursysteem B 1700 H 3500 Pr 100 Md 150",1220.04]
[null,"X5D32-35.18B100","XINNIX X5D32 Schuifdeursysteem B 1800 H 3500 Pr 100 Md 150",1220.04]
[null,"X5D32-35.19B100","XINNIX X5D32 Schuifdeursysteem B 1900 H 3500 Pr 100 Md 150",1405.69]
[null,"X5D32-35.20B100","XINNIX X5D32 Schuifdeursysteem B 2000 H 3500 Pr 100 Md 150",1405.69]
[null,"X5D32-35.21B100","XINNIX X5D32 Schuifdeursysteem B 2100 H 3500 Pr 100 Md 150",1533]
[null,"X5D32-35.22B100","XINNIX X5D32 Schuifdeursysteem B 2200 H 3500 Pr 100 Md 150",1533]
[null,"X5D32-35.23B100","XINNIX X5D32 Schuifdeursysteem B 2300 H 3500 Pr 100 Md 150",1533]
[null,"X5D32-35.24B100","XINNIX X5D32 Schuifdeursysteem B 2400 H 3500 Pr 100 Md 150",1533]
[null,"X5D32-35.25B100","XINNIX X5D32 Schuifdeursysteem B 2500 H 3500 Pr 100 Md 150",2015.71]
[null,"X5D32-35.26B100","XINNIX X5D32 Schuifdeursysteem B 2600 H 3500 Pr 100 Md 150",2015.71]
[null,"X5D32-35.27B100","XINNIX X5D32 Schuifdeursysteem B 2700 H 3500 Pr 100 Md 150",2015.71]
[null,"X5D32-35.28B100","XINNIX X5D32 Schuifdeursysteem B 2800 H 3500 Pr 100 Md 150",2015.71]
[null,"X5D32-35.29B100","XINNIX X5D32 Schuifdeursysteem B 2900 H 3500 Pr 100 Md 150",2015.71]
[null,"X5D32-35.30B100","XINNIX X5D32 Schuifdeursysteem B 3000 H 3500 Pr 100 Md 150",2015.71]

{"sheet":"STAANDERS","index":4,"n_rows":46,"n_cols":7,"rows_kept":46,"cut":false,"hidden":true,"merged":[]}
[]
[null,null,"X5-1972",null,null,"XINNIX X5 Schuifdeursysteem Enkele beplating (1/2)",280.09200000000004]
[null,null,"X5-2015",null,null,"XINNIX X5 Schuifdeursysteem Enkele beplating (1/2)",280.09200000000004]
[null,null,"X5-2040",null,null,"XINNIX X5 Schuifdeursysteem Enkele beplating (1/2)",280.09200000000004]
[null,null,"X5-2115",null,null,"XINNIX X5 Schuifdeursysteem Enkele beplating (1/2)",280.09200000000004]
[null,null,"X5-2315",null,null,"XINNIX X5 Schuifdeursysteem Enkele beplating (1/2)",294.83100000000002]
[null,null,"X5D-1972",null,null,"XINNIX X5D Schuifdeursysteem Dubbele Beplating (1/2)",280.09200000000004]
[null,null,"X5D-2015",null,null,"XINNIX X5D Schuifdeursysteem Dubbele Beplating (1/2)",280.09200000000004]
[null,null,"X5D-2040",null,null,"XINNIX X5D Schuifdeursysteem Dubbele Beplating (1/2)",280.09200000000004]
[null,null,"X5D-2115",null,null,"XINNIX X5D Schuifdeursysteem Dubbele Beplating (1/2)",280.09200000000004]
[null,null,"X5D-2315",null,null,"XINNIX X5D Schuifdeursysteem Dubbele Beplating (1/2)",294.83100000000002]
[null,null,"X5D-2415",null,null,"XINNIX X5D Schuifdeursysteem Dubbele Beplating (1/2)",294.83100000000002]
[null,null,"X5D-2715",null,null,"XINNIX X5D Schuifdeursysteem Dubbele Beplating (1/2)",464.35500000000002]
[null,null,"X5D-3015",null,null,"XINNIX X5D Schuifdeursysteem Dubbele Beplating (1/2)",493.85340000000002]
[null,null,"X5D32-1972",null,null,"XINNIX X5D32 Schuifdeursysteem Dubbele Beplating (1/2)",309.0804]
[null,null,"X5D32-2015",null,null,"XINNIX X5D32 Schuifdeursysteem Dubbele Beplating (1/2)",309.0804]
[null,null,"X5D32-2040",null,null,"XINNIX X5D32 Schuifdeursysteem Dubbele Beplating (1/2)",309.0804]
[null,null,"X5D32-2115",null,null,"XINNIX X5D32 Schuifdeursysteem Dubbele Beplating (1/2)",309.0804]
[null,null,"X5D32-2315",null,null,"XINNIX X5D32 Schuifdeursysteem Dubbele Beplating (1/2)",324.32940000000002]
[null,null,"X5D32-2415",null,null,"XINNIX X5D32 Schuifdeursysteem Dubbele Beplating (1/2)",324.32940000000002]
[null,null,"X5D32-2715",null,null,"XINNIX X5D32 Schuifdeursysteem Dubbele Beplating (1/2)",493.85340000000002]
[null,null,"X5D32-3015",null,null,"XINNIX X5D32 Schuifdeursysteem Dubbele Beplating (1/2)",530.70600000000002]
[null,null,"X5D32-3515",null,null,"XINNIX X5D32 Schuifdeursysteem Dubbele Beplating (1/2)",611.78579999999999]
[null,null,"X5-WALL2115",null,null,"XINNIX X5 WALL Schuifdeursysteem Enkele beplating (1/2)",200.36879999999999]
[null,null,"X5-WALL2415",null,null,"XINNIX X5 WALL Schuifdeursysteem Enkele beplating (1/2)",200.36879999999999]
[null,null,"X5D-WALL2415",null,null,"XINNIX X5D WALL Schuifdeursysteem Dubbele Beplating (1/2)",200.36879999999999]
[null,null,"X5D-WALL2715",null,null,"XINNIX X5D WALL Schuifdeursysteem Dubbele Beplating (1/2)",330.62279999999998]
[null,null,"X5D-WALL3015",null,null,"XINNIX X5D WALL Schuifdeursysteem Dubbele Beplating (1/2)",349.2276]
[null,null,"X5D-WALL3515",null,null,"XINNIX X5D WALL Schuifdeursysteem Dubbele Beplating (1/2)",349.2276]
[null,null,"X5D32-WALL2415",null,null,"XINNIX X5D32 WALL Schuifdeursysteem Dubbele Beplating (1/2)",227.57220000000001]
[null,null,"X5D32-WALL2715",null,null,"XINNIX X5D32 WALL Schuifdeursysteem Dubbele Beplating (1/2)",354.94980000000004]
[null,null,"X5D32-WALL3015",null,null,"XINNIX X5D32 WALL Schuifdeursysteem Dubbele Beplating (1/2)",364.96620000000001]
[null,null,"X5D32-WALL3515",null,null,"XINNIX X5D32 WALL Schuifdeursysteem Dubbele Beplating (1/2)",364.96620000000001]
[null,null,"X5D50-1972",null,null,"XINNIX X5D50 Schuifdeursysteem Dubbele Beplating (1/2)",362.14080000000001]
[null,null,"X5D50-2015",null,null,"XINNIX X5D50 Schuifdeursysteem Dubbele Beplating (1/2)",362.14080000000001]
[null,null,"X5D50-2040",null,null,"XINNIX X5D50 Schuifdeursysteem Dubbele Beplating (1/2)",362.14080000000001]
[null,null,"X5D50-2115",null,null,"XINNIX X5D50 Schuifdeursysteem Dubbele Beplating (1/2)",362.14080000000001]
[null,null,"X5D50-2315",null,null,"XINNIX X5D50 Schuifdeursysteem Dubbele Beplating (1/2)",380.00100000000003]
[null,null,"X5D50-2415",null,null,"XINNIX X5D50 Schuifdeursysteem Dubbele Beplating (1/2)",380.00100000000003]
[null,null,"X5D50-2715",null,null,"XINNIX X5D50 Schuifdeursysteem Dubbele Beplating (1/2)",578.63580000000002]
[null,null,"X5D50-3015",null,null,"XINNIX X5D50 Schuifdeursysteem Dubbele Beplating (1/2)",621.82259999999997]
[null,null,"X5D50-3515",null,null,"XINNIX X5D50 Schuifdeursysteem Dubbele Beplating (1/2)",716.8356]
[null,null,"X5D50-WALL2415",null,null,"XINNIX X5D50 WALL Schuifdeursysteem Dubbele Beplating (1/2)",261.70139999999998]
[null,null,"X5D50-WALL2715",null,null,"XINNIX X5D50 WALL Schuifdeursysteem Dubbele Beplating (1/2)",408.18360000000001]
[null,null,"X5D50-WALL3015",null,null,"XINNIX X5D50 WALL Schuifdeursysteem Dubbele Beplating (1/2)",419.69940000000003]
[null,null,"X5D50-WALL3515",null,null,"XINNIX X5D50 WALL Schuifdeursysteem Dubbele Beplating (1/2)",460.02]

{"sheet":"MIDDENSTAANDERS","index":5,"n_rows":6,"n_cols":5,"rows_kept":6,"cut":false,"hidden":true,"merged":[]}
[]
[null,"X5D/XM2115",null,"Extra set middenstaanders  breedte>1230 mm H 2115",162.15959999999998]
[null,"X5D/XM2315",null,"Extra set middenstaanders  breedte>1230 mm H 2315",176.90880000000001]
[null,"X5D/XM2715",null,"Extra set middenstaanders  breedte>1230 mm H 2715",265.35300000000001]
[null,"X5D/XM3015",null,"Extra set middenstaanders  breedte>1230 mm H 3015",287.47679999999997]
[null,"X5D/XM3515",null,"Extra set middenstaanders  breedte>1230 mm H 3515",339.0684]

{"sheet":"RAIL","index":6,"n_rows":50,"n_cols":10,"rows_kept":50,"cut":false,"hidden":true,"merged":[]}
[]
[null,"X5-0830.75","XINNIX X5 Schuifdeursysteem doorgang B 800  Pr 75 Md 100/125  (2/2)",null,268.31100000000004,null,null,null,"X5050","X5 synchroon systeem voor dubbele schuifdeur"]
[null,"X5-0930.75","XINNIX X5 Schuifdeursysteem doorgang B 900  Pr 75 Md 100/125  (2/2)",null,268.31100000000004,null,null,null,"X5060","X5 parallel systeem met tandriem "]
[null,"X5-1030.75","XINNIX X5 Schuifdeursysteem doorgang B 1000 Pr 75 Md 100/125  (2/2)",null,268.31100000000004,null,null,null,"X5065-L","Aanhaakset voor parallelsysteem links "]
[null,"X5-1230.75","XINNIX X5 Schuifdeursysteem doorgang B 1200 Pr 75 Md 100/125  (2/2)",null,319.40280000000001,null,null,null,"X5065-R","Aanhaakset voor parallelsysteem rechts "]
[null,"X5-1530.75","XINNIX X5 Schuifdeursysteem doorgang B 1500 Pr 75 Md 100/125  (2/2)",null,428.00220000000002]
[null,"X5-2030.75","XINNIX X5 Schuifdeursysteem doorgang B 2000 Pr 75 Md 100/125  (2/2)",null,600.36180000000002]
[null,"X5-0830.100","XINNIX X5 Schuifdeursysteem doorgang B 800 Pr 100 Md 125/150  (2/2)",null,268.31100000000004]
[null,"X5-0930.100","XINNIX X5 Schuifdeursysteem doorgang B 900 Pr 100 Md 125/150  (2/2)",null,268.31100000000004]
[null,"X5-1030.100","XINNIX X5 Schuifdeursysteem doorgang B 1000 Pr 100 Md 125/150  (2/2)",null,268.31100000000004]
[null,"X5-1230.100","XINNIX X5 Schuifdeursysteem doorgang B 1200 Pr 100 Md 125/150  (2/2)",null,319.40280000000001]
[null,"X5-1530.100","XINNIX X5 Schuifdeursysteem doorgang B 1500 Pr 100 Md 125/150  (2/2)",null,428.00220000000002]
[null,"X5-2030.100","XINNIX X5 Schuifdeursysteem doorgang B 2000 Pr 100 Md 125/150  (2/2)",null,600.36180000000002]
[null,"X5-2430.100","XINNIX X5 Schuifdeursysteem doorgang B 2400 Pr 100 Md 125/150  (2/2)",null,728.56560000000002]
[null,"X5-3030.100","XINNIX X5 Schuifdeursysteem doorgang B 3000 Pr 100 Md 125/150  (2/2)",null,977.38440000000003]
[null,"X5-0830.50GLC","XINNIX X5 Glas Schuifdeursysteem - klem met cover doorgang B 800 Pr 50 Md 100  (2/2)",null,498.28019999999998]
[null,"X5-0930.50GLC","XINNIX X5 Glas Schuifdeursysteem - klem met cover doorgang B 900 Pr 50 Md 100  (2/2)",null,498.28019999999998]
[null,"X5-1030.50GLC","XINNIX X5 Glas Schuifdeursysteem - klem met cover doorgang B 1000 Pr 50 Md 100  (2/2)",null,498.28019999999998]
[null,"X5-0830.75GLC","XINNIX X5 Glas Schuifdeursysteem - klem met cover doorgang B 800 Pr 75 Md 100/125  (2/2)",null,511.05059999999997]
[null,"X5-0930.75GLC","XINNIX X5 Glas Schuifdeursysteem - klem met cover doorgang B 900 Pr 75 Md 100/125  (2/2)",null,511.05059999999997]
[null,"X5-1030.75GLC","XINNIX X5 Glas Schuifdeursysteem - klem met cover doorgang B 1000 Pr 75 Md 100/125  (2/2)",null,511.05059999999997]
[null,"X5-1230.75GLC","XINNIX X5 Glas Schuifdeursysteem - klem met cover doorgang B 1200 Pr 75 Md 100/125  (2/2)",null,574.93319999999994]
[null,"X5-1530.75GLC","XINNIX X5 Glas Schuifdeursysteem - klem met cover doorgang B 1500 Pr 75 Md 100/125  (2/2)",null,683.56319999999994]
[null,"X5-H100-0830.75","X5 Schuifdeursysteem Hawa doorgang B 800  Pr 75 Md 100/125  (2/2)",null,570.87360000000001]
[null,"X5-H100-0930.75","X5 Schuifdeursysteem Hawa doorgang B 900  Pr 75 Md 100/125  (2/2)",null,570.87360000000001]
[null,"X5-H100-1030.75","X5 Schuifdeursysteem Hawa doorgang B 1000 Pr 75 Md 100/125  (2/2)",null,570.87360000000001]
[null,"X5-H100-1230.75","X5 Schuifdeursysteem Hawa doorgang B 1200 Pr 75 Md 100/125  (2/2)",null,642.2328]
[null,"X5-H100-0830.100","X5 Schuifdeursysteem Hawa doorgang B 800 Pr 100 Md 125/150  (2/2)",null,570.87360000000001]
[null,"X5-H100-0930.100","X5 Schuifdeursysteem Hawa doorgang B 900 Pr 100 Md 125/150  (2/2)",null,570.87360000000001]
[null,"X5-H100-1030.100","X5 Schuifdeursysteem Hawa doorgang B 1000 Pr 100 Md 125/150  (2/2)",null,570.87360000000001]
[null,"X5-H100-1230.100","X5 Schuifdeursysteem Hawa doorgang B 1200 Pr 100 Md 125/150  (2/2)",null,642.2328]
[null,"X5-DS-1030.75","Xinnix X5 Schuifdeursysteem - Softopen + softclose - doorgang B 1000 Pr 75 Md 100/125  (2/2) ",null,332.19]
[null,"X5-DS-1230.75","Xinnix X5 Schuifdeursysteem - Softopen + softclose - doorgang B 1200 Pr 75 Md 100/125  (2/2)",null,382.29]
[null,"X5-DS-1530.75","Xinnix X5 Schuifdeursysteem - Softopen + softclose - doorgang B 1500 Pr 75 Md 100/125  (2/2)",null,491.88]
[null,"X5-DS-2030.75","Xinnix X5 Schuifdeursysteem - Softopen + softclose - doorgang B 2000 Pr 75 Md 100/125  (2/2)",null,664.24]
[null,"X5-DS-0830.75","Xinnix X5 Schuifdeursysteem - Softopen + softclose - doorgang B 800 Pr 75 Md 100/125  (2/2)",null,332.19]
[null,"X5-DS-0930.75","Xinnix X5 Schuifdeursysteem - Softopen + softclose - doorgang B 900 Pr 75 Md 100/125  (2/2)",null,332.19]
[null,"X5-DS-1030.100","Xinnix X5 Schuifdeursysteem - Softopen + softclose - doorgang B 1000 Pr 100 Md 125/150  (2/2",null,332.19]
[null,"X5-DS-1230.100","Xinnix X5 Schuifdeursysteem - Softopen + softclose - doorgang B 1200 Pr 100 Md 125/150  (2/2)",null,383.29]
[null,"X5-DS-1530.100","Xinnix X5 Schuifdeursysteem - Softopen + softclose - doorgang B 1500 Pr 100 Md 125/150  (2/2)",null,491.88]
[null,"X5-DS-2030.100","Xinnix X5 Schuifdeursysteem - Softopen + softclose - doorgang B 2000 Pr 100 Md 125/150  (2/2)",null,664.24]
[null,"X5-DS-2430.100","Xinnix X5 Schuifdeursysteem - Softopen + softclose - doorgang B 2400 Pr 100 Md 125/150  (2/2)",null,792.45]
[null,"X5-DS-3030.100","Xinnix X5 Schuifdeursysteem - Softopen + softclose - doorgang B 3000 Pr 100 Md 125/150  (2/2)",null,1041.27]
[null,"X5-DS-0830.100","Xinnix X5 Schuifdeursysteem - Softopen + softclose - doorgang B 800 Pr 100 Md 125/150  (2/2)",null,332.19]
[null,"X5-DS-0930.100","Xinnix X5 Schuifdeursysteem - Softopen + softclose - doorgang B 900 Pr 100 Md 125/150  (2/2)",null,332.19]
[null,"X5-DS-1030.75GLC","Xinnix X5 Schuifdeursysteem - Softopen + softclose - klem met cover - doorgang B 1000 Pr 100 Md 125 (2/2)",null,574.92999999999995]
[null,"X5-DS-1230.75GLC","Xinnix X5 Schuifdeursysteem - Softopen + softclose - klem met cover -doorgang B 1200 Pr 100 Md 125 (2/2)",null,638.82000000000005]
[null,"X5-DS-1530.75GLC","Xinnix X5 Schuifdeursysteem - Softopen + softclose - klem met cover - doorgang B 1500 Pr 100 Md 125 (2/2)",null,747.45]
[null,"X5-DS-0830.75GLC","Xinnix X5 Schuifdeursysteem - Softopen + softclose - klem met cover - doorgang B 800 Pr 100 Md 125 (2/2)",null,574.92999999999995]
[null,"X5-DS-0930.75GLC","Xinnix X5 Schuifdeursysteem - Softopen + softclose - klem met cover - doorgang B 900 Pr 100 Md 125 (2/2)",null,574.92999999999995]

{"sheet":"AFWERKING","index":7,"n_rows":186,"n_cols":4,"rows_kept":186,"cut":false,"hidden":true,"merged":[]}
[null,"X5D32-XINNIX/D.1","XINNIX X5D32 Afwerkset voor dubbele deuren voor dubbele beplating (vrije doorgang <2400 mm)",94.7988]
[null,"X5D32-XINNIX/D.2","XINNIX X5D32 Afwerkset voor dubbele deuren voor dubbele beplating (vrije doorgang 2400-4000 mm)",189.5976]
[null,"X5D32-XINNIX-23.139/1","XINNIX X5D32 Afwerkset H 2315 B 1230 voor dubbele beplating   (<1230mm)",187.8126]
[null,"X5D32-XINNIX-23.139/2","XINNIX X5D32 Afwerkset H 2315 B 2400 voor dubbele beplating   (1230mm - 2400mm)",238.12920000000003]
[null,"X5D32-XINNIX-23.139/3","XINNIX X5D32 Afwerkset H 2315 B 3600 voor dubbele beplating   (2400mm - 3600mm)",288.42539999999997]
[null,"X5D32-XINNIX-23.164/1","XINNIX X5D32 Afwerkset H 2315 B 1230 voor dubbele beplating   (<1230mm)",187.8126]
[null,"X5D32-XINNIX-23.164/2","XINNIX X5D32 Afwerkset H 2315 B 2400 voor dubbele beplating   (1230mm - 2400mm)",238.12920000000003]
[null,"X5D32-XINNIX-23.164/3","XINNIX X5D32 Afwerkset H 2315 B 3600 voor dubbele beplating   (2400mm - 3600mm)",288.42539999999997]
[null,"X5D32-XINNIX-27.139/1","XINNIX X5D32 Afwerkset H 2715 B 1230 voor dubbele beplating   (<1230mm)",265.10820000000001]
[null,"X5D32-XINNIX-27.139/2","XINNIX X5D32 Afwerkset H 2715 B 2400 voor dubbele beplating   (1230mm - 2400mm)",347.17740000000003]
[null,"X5D32-XINNIX-27.139/3","XINNIX X5D32 Afwerkset H 2715 B 3600 voor dubbele beplating   (2400mm - 3600mm)",428.64480000000003]
[null,"X5D32-XINNIX-27.164/1","XINNIX X5D32 Afwerkset H 2715 B 1230 voor dubbele beplating   (<1230mm)",265.10820000000001]
[null,"X5D32-XINNIX-27.164/2","XINNIX X5D32 Afwerkset H 2715 B 2400 voor dubbele beplating   (1230mm - 2400mm)",347.17740000000003]
[null,"X5D32-XINNIX-27.164/3","XINNIX X5D32 Afwerkset H 2715 B 3600 voor dubbele beplating   (2400mm - 3600mm)",428.64480000000003]
[null,"X5D32-XINNIX-30.139/1","XINNIX X5D32 Afwerkset H 3015 B 1230 voor dubbele beplating   (<1230mm)",280.37759999999997]
[null,"X5D32-XINNIX-30.139/2","XINNIX X5D32 Afwerkset H 3015 B 2400 voor dubbele beplating   (1230mm - 2400mm)",362.2122]
[null,"X5D32-XINNIX-30.139/3","XINNIX X5D32 Afwerkset H 3015 B 3600 voor dubbele beplating   (2400mm - 3600mm)",444.03659999999996]
[null,"X5D32-XINNIX-30.164/1","XINNIX X5D32 Afwerkset H 3015 B 1230 voor dubbele beplating   (<1230mm)",280.37759999999997]
[null,"X5D32-XINNIX-30.164/2","XINNIX X5D32 Afwerkset H 3015 B 2400 voor dubbele beplating   (1230mm - 2400mm)",362.2122]
[null,"X5D32-XINNIX-30.164/3","XINNIX X5D32 Afwerkset H 3015 B 3600 voor dubbele beplating   (2400mm - 3600mm)",444.03659999999996]
[null,"X5D32-XINNIX-35.164/1","XINNIX X5D32 Afwerkset H 3515 B 1230 voor dubbele beplating   (<1230mm)",321.64679999999998]
[null,"X5D32-XINNIX-35.164/2","XINNIX X5D32 Afwerkset H 3515 B 2400 voor dubbele beplating   (1230mm - 2400mm)",413.94659999999999]
[null,"X5D32-XINNIX-35.164/3","XINNIX X5D32 Afwerkset H 3515 B 3600 voor dubbele beplating    (2400mm - 3600 mm)",507.47039999999998]
[null,"X5D-XINNIX/D.1","Afwerkset X5D voor dubbele beplating voor dubbele deuren (vrije doorgang <2400 mm)",94.7988]
[null,"X5D-XINNIX/D.2","Afwerkset X5D voor dubbele beplating voor dubbele deuren (vrije doorgang 2400-4000 mm)",189.5976]
[null,"X5D-XINNIX-23.125/1","XINNIX X5D Afwerkset H 2315 B 1230 voor dubbele beplating   (<1230mm)",178.86720000000003]
[null,"X5D-XINNIX-23.125/2","XINNIX X5D Afwerkset H 2315 B 2400 voor dubbele beplating   (1230mm -2400 mm)",226.7868]
[null,"X5D-XINNIX-23.125/3","XINNIX X5D Afwerkset H 2315 B 3600 voor dubbele beplating   (2400mm - 3600mm)",274.67580000000004]
[null,"X5D-XINNIX-23.150/1","XINNIX X5D Afwerkset H 2315 B 1230 voor dubbele beplating   (<1230mm)",178.86720000000003]
[null,"X5D-XINNIX-23.150/2","XINNIX X5D Afwerkset H 2315 B 2400 voor dubbele beplating   (1230mm - 2400mm)",226.7868]
[null,"X5D-XINNIX-23.150/3","XINNIX X5D Afwerkset H 2315 B 3600 voor dubbele beplating   ( 2400mm - 3600 mm)",274.67580000000004]
[null,"X5D-XINNIX-27.125/1","XINNIX X5D Afwerkset H 2715 B 1230 voor dubbele beplating   (<1230mm)",252.33779999999999]
[null,"X5D-XINNIX-27.125/2","XINNIX X5D Afwerkset H 2715 B 2400 voor dubbele beplating   (1230mm - 2400mm)",330.27600000000001]
[null,"X5D-XINNIX-27.125/3","XINNIX X5D Afwerkset H 2715 B 3600 voor dubbele beplating   (2400mm - 3600mm)",408.19380000000001]
[null,"X5D-XINNIX-27.150/1","XINNIX X5D Afwerkset H 2715 B 1230 voor dubbele beplating   (<1230mm)",252.33779999999999]
[null,"X5D-XINNIX-27.150/2","XINNIX X5D Afwerkset H 2715 B 2400 voor dubbele beplating   (1230mm - 2400mm)",330.27600000000001]
[null,"X5D-XINNIX-27.150/3","XINNIX X5D Afwerkset H 2715 B 3600 voor dubbele beplating   (2400mm - 3600mm)",408.19380000000001]
[null,"X5D-XINNIX-30.125/1","XINNIX X5D Afwerkset H 3015 B 1230 voor dubbele beplating   (<1230mm)",267.0258]
[null,"X5D-XINNIX-30.125/2","XINNIX X5D Afwerkset H 3015 B 2400 voor dubbele beplating   (1230mm - 2400mm)",344.9436]
[null,"X5D-XINNIX-30.125/3","XINNIX X5D Afwerkset H 3015 B 3600 voor dubbele beplating   (2400mm - 3600mm)",422.8818]
[null,"X5D-XINNIX-30.150/1","XINNIX X5D Afwerkset H 3015 B 1230 voor dubbele beplating   (<1230mm)",267.0258]
[null,"X5D-XINNIX-30.150/2","XINNIX X5D Afwerkset H 3015 B 2400 voor dubbele beplating   (1230mm - 2400mm)",344.9436]
[null,"X5D-XINNIX-30.150/3","XINNIX X5D Afwerkset H 3015 B 3600 voor dubbele beplating   (2400mm - 3600mm)",422.8818]
[null,"X5D-XINNIXGL-23.100/1","XINNIX X5 Afwerkset H2315 B 1230 GLAS",162.23100000000002]
[null,"X5D-XINNIXGL-23.125/1","XINNIX X5 Afwerkset H2315 B 1230 GLAS",178.86720000000003]
[null,"X5D-XINNIXGL-23.125/2","XINNIX X5 Afwerkset H2315 B 2400 GLAS",226.7868]
[null,"X5D-XINNIXGL-27.125/1","XINNIX X5 Afwerkset H2715 B 1230 GLAS",236.3544]
[null,"X5D-XINNIXGL-27.125/2","XINNIX X5 Afwerkset H 3015 B 2400 GLAS",317.48]
[null,"X5D-XINNIXGL-30.125/1","XINNIX X5 Afwerkset H 3015 B 1230 GLAS",279.73500000000001]
[null,"X5D-XINNIXGL-30.125/2","XINNIX X5 Afwerkset H 3015 B 2400 GLAS",344.9436]
[null,"X5D32-XINNIXGL-23.114/1","XINNIX X5D32 Afwerkset H2315 B 1230 GLAS",187.8126]
[null,"X5D32-XINNIXGL-23.114/2","XINNIX X5D32 Afwerkset H2315 B 2400 GLAS",237.6396]
[null,"X5D32-XINNIXGL-23.139/1","XINNIX X5D32 Afwerkset H2315 B 1230 GLAS",187.8126]
[null,"X5D32-XINNIXGL-23.139/2","XINNIX X5D32 Afwerkset H2315 B 2400 GLAS",237.6396]
[null,"X5D32-XINNIXGL-27.114/1","XINNIX X5D32 Afwerkset H2715 B 1230 GLAS",265.10820000000001]
[null,"X5D32-XINNIXGL-27.114/2","XINNIX X5D32 Afwerkset H2715 B 2400 GLAS",346.22879999999998]
[null,"X5D32-XINNIXGL-27.139/1","XINNIX X5D32 Afwerkset H2715 B 1230 GLAS",265.10820000000001]
[null,"X5D32-XINNIXGL-27.139/2","XINNIX X5D32 Afwerkset H2715 B 2400 GLAS",346.22879999999998]
[null,"X5D32-XINNIXGL-30.139/1","XINNIX X5D32 Afwerkset H 3015 B 1230 GLAS",280.43880000000001]
[null,"X5D32-XINNIXGL-30.139/2","XINNIX X5D32 Afwerkset H 3015 B 2400 GLAS",362.2122]
[null,"X5-PURE/D","Afwerkset X5 voor dubbele deuren PURE",95.839199999999991]
[null,"X5-PURE-23.100","XINNIX X5 Afwerkset H 2315",264.14940000000001]
[null,"X5-PURE-23.125","XINNIX X5/X5D Afwerkset H 2315",264.14940000000001]
[null,"X5-PURE-23.139","XINNIX X5D32 Afwerkset H 2315 MS 75",277.37880000000001]
[null,"X5-PURE-23.150","XINNIX X5D Afwerkset H 2315",264.14940000000001]
[null,"X5-PURE-23.164","XINNIX X5D32 Afwerkset H 2315 MS 100 ",277.37880000000001]
[null,"X5-PURE-27.125","XINNIX X5/X5D Afwerkset H 2715",334.1112]
[null,"X5-PURE-27.139","XINNIX X5D32 Afwerkset H 2715 MS 75",350.84940000000006]
[null,"X5-PURE-27.150","XINNIX X5D Afwerkset H 2715",334.1112]
[null,"X5-PURE-27.164","XINNIX X5D32 Afwerkset H 2715 MS 100",350.84940000000006]
[null,"X5-PURE-35.139","XINNIX X5D32 Afwerkset H 3515 MS 75",385.83539999999999]
[null,"X5-PURE-35.164","XINNIX X5D32 Afwerkset H 3515 MS 1230",385.83539999999999]
[null,"X5-PURE-30.125","XINNIX X5/X5D Afwerkset H 3015",348.15659999999997]
[null,"X5-PURE-30.139","XINNIX X5D32 Afwerkset H 3015 MS 75",365.58840000000004]
[null,"X5-PURE-30.150","XINNIX X5D Afwerkset H 3015",348.15659999999997]
[null,"X5-PURE-30.164","XINNIX X5D32 Afwerkset H 3015 MS 1230",365.58840000000004]
[null,"X5-PUREGL-23.100","XINNIX X5 Afwerkset H 2315 GLAS",132.36540000000002]
[null,"X5-PUREGL-23.125","XINNIX X5D Afwerkset H 2315 GLAS",132.36540000000002]
[null,"X5-PUREGL-27.100","XINNIX X5 Afwerkset H 2715 GLAS",205.82579999999999]
[null,"X5-PUREGL-27.125","XINNIX X5D Afwerkset H 2715 GLAS",205.82579999999999]
[null,"X5-PUREGL-30.100","XINNIX X5 Afwerkset H 3015 GLAS",220.50360000000001]
[null,"X5-PUREGL-30.125","XINNIX X5D Afwerkset H 3015 GLAS",220.50360000000001]
[null,"X5-PUREGL-23.114","XINNIX X5D32 Afwerkset H 2315 GLAS",139.00560000000002]
[null,"X5-PUREGL-23.139","XINNIX X5D32 Afwerkset H 2315 GLAS",139.00560000000002]
[null,"X5-PUREGL-27.114","XINNIX X5D32 Afwerkset H 2715 GLAS",216.1788]
[null,"X5-PUREGL-27.139","XINNIX X5D32 Afwerkset H 2715 GLAS",216.1788]
[null,"X5-PUREGL-30.114","XINNIX X5D32 Afwerkset H 3015 GLAS",231.58079999999998]
[null,"X5-PUREGL-30.139","XINNIX X5D32 Afwerkset H 3015 GLAS",231.58079999999998]
[null,"X5-XINNIX/D.1","Afwerkset X5 voor dubbele deuren Xinnix <2400 mm",61.067399999999999]
[null,"X5-XINNIX/D.2","Afwerkset X5 voor dubbele deuren Xinnix 2400-4000 mm",122.145]
[null,"X5-XINNIX-23.100/1","XINNIX X5 Afwerkset H 2315 B 1200  (<1230mm)",162.9144]
[null,"X5-XINNIX-23.100/2","XINNIX X5 Afwerkset H 2315 B 2400  (1230-2400mm)",193.56540000000001]
[null,"X5-XINNIX-23.125/1","XINNIX X5 Afwerkset H 2315 B 1200  (<1230mm)",162.9144]
[null,"X5-XINNIX-23.125/2","XINNIX X5 Afwerkset H 2315 B 2400  (1230-2400mm)",193.56540000000001]
[null,"X5-XINNIXGL-23.100/1","XINNIX X5 Afwerkset H 2315 B 2400  (1230-2400mm) GLAS",162.23100000000002]
[null,"X5-XINNIXGL-23.100/2","XINNIX X5 Afwerkset H 2315 B 2400  (1230-2400mm) GLAS",193.55519999999999]
[null,"X5-H100-PURE-23.100/40","XINNIX X5 HAWA Afwerkset H 2315 muurdikte 100 deurdikte <45 mm",138.64860000000002]
[null,"X5-H100-PURE-23.125/40","XINNIX X5 HAWA Afwerkset H 2315 muurdikte 125 deurdikte <45 mm",138.64860000000002]
[null,"X5-H100-PURE-23.125/50","XINNIX X5 HAWA Afwerkset H 2315 muurdikte 125 deurdikte 45-54 mm",138.64860000000002]
[null,"X5-H100-PURE-23.125/60","XINNIX X5 HAWA Afwerkset H 2315 muurdikte 125 deurdikte 55-60 mm",138.64860000000002]
[null,"X5-H100-PURE-27.125/40","XINNIX X5 HAWA Afwerkset H 2715 muurdikte 125 deurdikte <45 mm",215.62800000000001]
[null,"X5-H100-PURE-27.125/50","XINNIX X5 HAWA Afwerkset H 2715 muurdikte 125 deurdikte 45-54 mm",215.62800000000001]
[null,"X5-H100-PURE-27.125/60","XINNIX X5 HAWA Afwerkset H 2715 muurdikte 125 deurdikte 55-60 mm",215.62800000000001]
[null,"X5-H100-PURE-30.125/40","XINNIX X5 HAWA Afwerkset H 3015 muurdikte 125 deurdikte <45 mm",231.00960000000001]
[null,"X5-H100-PURE-30.125/50","XINNIX X5 HAWA Afwerkset H 3015 muurdikte 125 deurdikte 45-54 mm",231.00960000000001]
[null,"X5-H100-PURE-30.125/60","XINNIX X5 HAWA Afwerkset H 3015 muurdikte 125 deurdikte 55-60 mm",231.00960000000001]
[null,"X5-H100-PURE-23.139/40","XINNIX X5 HAWA Afwerkset H 2315 muurdikte 139 deurdikte <45 mm",181.30500000000001]
[null,"X5-H100-PURE-27.139/40","XINNIX X5 HAWA Afwerkset H 2715 muurdikte 139 deurdikte <45 mm",277.98059999999998]
[null,"X5-H100-PURE-30.139/40","XINNIX X5 HAWA Afwerkset H 3015 muurdikte 139 deurdikte <45 mm",297.23820000000001]
[null,"X5-H100-PURE-23.150/40","XINNIX X5 HAWA Afwerkset H 2315 muurdikte 150 deurdikte <45 mm",167.44319999999999]
[null,"X5-H100-PURE-23.150/50","XINNIX X5 HAWA Afwerkset H 2315 muurdikte 150 deurdikte 45-54 mm",167.44319999999999]
[null,"X5-H100-PURE-23.150/60","XINNIX X5 HAWA Afwerkset H 2315 muurdikte 150 deurdikte 55-60 mm",167.44319999999999]
[null,"X5-H100-PURE-27.150/40","XINNIX X5 HAWA Afwerkset H 2715 muurdikte 150 deurdikte <45 mm",260.4366]
[null,"X5-H100-PURE-27.150/50","XINNIX X5 HAWA Afwerkset H 2715 muurdikte 150 deurdikte 45-54 mm",260.4366]
[null,"X5-H100-PURE-27.150/60","XINNIX X5 HAWA Afwerkset H 2715 muurdikte 150 deurdikte 55-60 mm",260.4366]
[null,"X5-H100-PURE-30.150/40","XINNIX X5 HAWA Afwerkset H 3015 muurdikte 150 deurdikte <45 mm",278.97000000000003]
[null,"X5-H100-PURE-30.150/50","XINNIX X5 HAWA Afwerkset H 3015 muurdikte 150 deurdikte 45-54 mm",278.97000000000003]
[null,"X5-H100-PURE-30.150/60","XINNIX X5 HAWA Afwerkset H 3015 muurdikte 150 deurdikte 55-60 mm",278.97000000000003]
[null,"X5-H100-PURE-23.164/40","XINNIX X5 HAWA Afwerkset H 2315 muurdikte 164 deurdikte <45 mm",181.30500000000001]
[null,"X5-H100-PURE-23.164/50","XINNIX X5 HAWA Afwerkset H 2315 muurdikte 164 deurdikte 45-54 mm",181.30500000000001]
[null,"X5-H100-PURE-23.164/60","XINNIX X5 HAWA Afwerkset H 2315 muurdikte 164 deurdikte 55-60 mm",181.30500000000001]
[null,"X5-H100-PURE-27.164/40","XINNIX X5 HAWA Afwerkset H 2715 muurdikte 164 deurdikte <45 mm",277.98059999999998]
[null,"X5-H100-PURE-27.164/50","XINNIX X5 HAWA Afwerkset H 2715 muurdikte 164 deurdikte 45-54 mm",277.98059999999998]
[null,"X5-H100-PURE-27.164/60","XINNIX X5 HAWA Afwerkset H 2715 muurdikte 164 deurdikte 55-60 mm",277.98059999999998]
[null,"X5-H100-PURE-30.164/40","XINNIX X5 HAWA Afwerkset H 3015 muurdikte 164 deurdikte <45 mm",297.23820000000001]
[null,"X5-H100-PURE-30.164/50","XINNIX X5 HAWA Afwerkset H 3015 muurdikte 164 deurdikte 45-54 mm",297.23820000000001]
[null,"X5-H100-PURE-30.164/60","XINNIX X5 HAWA Afwerkset H 3015 muurdikte 164 deurdikte 55-60 mm",297.23820000000001]
[null,"X5-H100-PURE-23.175/40","XINNIX X5 HAWA Afwerkset H 2315 muurdikte 175 deurdikte <45 mm",181.30500000000001]
[null,"X5-H100-PURE-27.175/40","XINNIX X5 HAWA Afwerkset H 2715 muurdikte 175 deurdikte <45 mm",277.98059999999998]
[null,"X5-H100-PURE-30.175/40","XINNIX X5 HAWA Afwerkset H 3015 muurdikte 175 deurdikte <45 mm",297.23820000000001]
[null,"X5-H100-PURE-23.200/40","XINNIX X5 HAWA Afwerkset H 2315 muurdikte 200 deurdikte <45 mm",181.30500000000001]
[null,"X5-H100-PURE-23.200/50","XINNIX X5 HAWA Afwerkset H 2315 muurdikte 200 deurdikte 45-54 mm",181.30500000000001]
[null,"X5-H100-PURE-23.200/60","XINNIX X5 HAWA Afwerkset H 2315 muurdikte 200 deurdikte 55-60 mm",181.30500000000001]
[null,"X5-H100-PURE-27.200/40","XINNIX X5 HAWA Afwerkset H 2715 muurdikte 200 deurdikte <45 mm",277.98059999999998]
[null,"X5-H100-PURE-27.200/50","XINNIX X5 HAWA Afwerkset H 2715 muurdikte 200 deurdikte 45-54 mm",277.98059999999998]
[null,"X5-H100-PURE-27.200/60","XINNIX X5 HAWA Afwerkset H 2715 muurdikte 200 deurdikte 55-60 mm",277.98059999999998]
[null,"X5-H100-PURE-30.200/40","XINNIX X5 HAWA Afwerkset H 3015 muurdikte 200 deurdikte <45 mm",297.23820000000001]
[null,"X5-H100-PURE-30.200/50","XINNIX X5 HAWA Afwerkset H 3015 muurdikte 200 deurdikte 45-54 mm",297.23820000000001]
[null,"X5-H100-PURE-30.200/60","XINNIX X5 HAWA Afwerkset H 3015 muurdikte 200 deurdikte 55-60 mm",297.23820000000001]
[null,"X5D50-XINNIX-23.175/1","XINNIX X5D50 Afwerkset H 2315 B 1200 voor dubbele beplating   (<1230mm)",215.96459999999999]
[null,"X5D50-XINNIX-23.175/2","XINNIX X5D50 Afwerkset H 2315 B 2400 voor dubbele beplating   (1230mm - 2400mm)",273.27840000000003]
[null,"X5D50-XINNIX-23.175/3","XINNIX X5D50 Afwerkset H 2315 B 3600 voor dubbele beplating   (2400mm - 3600mm)",331.67340000000002]
[null,"X5D50-XINNIX-23.200/1","XINNIX X5D50 Afwerkset H 2315 B 1200 voor dubbele beplating   (<1230mm)",215.96459999999999]
[null,"X5D50-XINNIX-23.200/2","XINNIX X5D50 Afwerkset H 2315 B 2400 voor dubbele beplating   (1230mm - 2400mm)",273.27840000000003]
[null,"X5D50-XINNIX-23.200/3","XINNIX X5D50 Afwerkset H 2315 B 3600 voor dubbele beplating   (2400mm - 3600mm)",331.67340000000002]
[null,"X5D50-XINNIX-27.175/1","XINNIX X5D50 Afwerkset H 2715 B 1200 voor dubbele beplating   (<1230mm)",304.85759999999999]
[null,"X5D50-XINNIX-27.175/2","XINNIX X5D50 Afwerkset H 2715 B 2400 voor dubbele beplating   (1230mm - 2400mm)",398.90159999999997]
[null,"X5D50-XINNIX-27.175/3","XINNIX X5D50 Afwerkset H 2715 B 3600 voor dubbele beplating   (2400mm - 3600mm)",492.93540000000002]
[null,"X5D50-XINNIX-27.200/1","XINNIX X5D50 Afwerkset H 2715 B 1200 voor dubbele beplating   (<1230mm)",304.85759999999999]
[null,"X5D50-XINNIX-27.200/2","XINNIX X5D50 Afwerkset H 2715 B 2400 voor dubbele beplating   (1230mm - 2400mm)",398.90159999999997]
[null,"X5D50-XINNIX-27.200/3","XINNIX X5D50 Afwerkset H 2715 B 3600 voor dubbele beplating   (2400mm - 3600mm)",492.93540000000002]
[null,"X5D50-XINNIX-30.175/1","XINNIX X5D50 Afwerkset H 3015 B 1200 voor dubbele beplating   (<1230mm)",322.50360000000001]
[null,"X5D50-XINNIX-30.175/2","XINNIX X5D50 Afwerkset H 3015 B 2400 voor dubbele beplating   (1230mm - 2400mm)",404.27700000000004]
[null,"X5D50-XINNIX-30.175/3","XINNIX X5D50 Afwerkset H 3015 B 3600 voor dubbele beplating   (2400mm - 3600mm)",495.08760000000001]
[null,"X5D50-XINNIX-30.200/1","XINNIX X5D50 Afwerkset H 3015 B 1200 voor dubbele beplating   (<1230mm)",322.50360000000001]
[null,"X5D50-XINNIX-30.200/2","XINNIX X5D50 Afwerkset H 3015 B 2400 voor dubbele beplating   (1230mm - 2400mm)",404.27700000000004]
[null,"X5D50-XINNIX-30.200/3","XINNIX X5D50 Afwerkset H 3015 B 3600 voor dubbele beplating   (2400mm - 3600mm)",495.08760000000001]
[null,"X5D50-XINNIX-35.200/1","XINNIX X5D50 Afwerkset H 3515 B 2400 voor dubbele beplating   (<1230mm)",388.3956]
[null,"X5D50-XINNIX-35.200/2","XINNIX X5D50 Afwerkset H 3515 B 2400 voor dubbele beplating   (1230mm - 2400mm)",499.8408]
[null,"X5D50-XINNIX-35.200/3","XINNIX X5D50 Afwerkset H 3515 B 2600 voor dubbele beplating    (2400mm - 3600 mm)",612.77520000000004]
[null,"X5-PURE-23.175","XINNIX X5D50 Afwerkset H 2315 MS 75",277.37880000000001]
[null,"X5-PURE-27.175","XINNIX X5D50 Afwerkset H 2715 MS 75",350.84940000000006]
[null,"X5-PURE-30.175","XINNIX X5D50 Afwerkset H 3015 MS 75",365.58840000000004]
[null,"X5-PURE-35.175","XINNIX X5D50 Afwerkset H 3515 MS 75",385.83539999999999]
[null,"X5-PURE-23.200","XINNIX X5D50 Afwerkset H 2315 MS 200",277.37880000000001]
[null,"X5-PURE-27.200","XINNIX X5D50 Afwerkset H 2715 MS 100",350.84940000000006]
[null,"X5-PURE-30.200","XINNIX X5D50 Afwerkset H 3015 MS 100",365.58840000000004]
[null,"X5-PURE-35.200","XINNIX X5D50 Afwerkset H 3515 MS 100",385.83539999999999]
[null,"X5D50-XINNIXGL-23.150/1","XINNIX X5D50 Afwerkset H 2315 B 1230 MS 50 GLAS",215.96459999999999]
[null,"X5D50-XINNIXGL-23.150/2","XINNIX X5D50 Afwerkset H 2315 B 2400 MS 50 GLAS",273.27840000000003]
[null,"X5D50-XINNIXGL-27.150/1","XINNIX X5D50 Afwerkset H 2715 B 1230 MS 50 GLAS",304.85759999999999]
[null,"X5D50-XINNIXGL-27.150/2","XINNIX X5D50 Afwerkset H 2715 B 2400 MS 50 GLAS",398.15700000000004]
[null,"X5D50-XINNIXGL-23.175/1","XINNIX X5D50 Afwerkset H 2315 B 1230 MS 75 GLAS",215.96459999999999]
[null,"X5D50-XINNIXGL-23.175/2","XINNIX X5D50 Afwerkset H 2315 B 2400 MS 75 GLAS",273.27840000000003]
[null,"X5D50-XINNIXGL-27.175/1","XINNIX X5D50 Afwerkset H 2715 B 1230 MS 75 GLAS",304.85759999999999]
[null,"X5D50-XINNIXGL-27.175/2","XINNIX X5D50 Afwerkset H 2715 B 2400 MS 75 GLAS",398.15700000000004]
[null,"X5D50-XINNIXGL-30.175/1","XINNIX X5D50 Afwerkset H 3015 B 1230 MS 75 GLAS",322.50360000000001]
[null,"X5D50-XINNIXGL-30.175/2","XINNIX X5D50 Afwerkset H 3015 B 2400 MS 75 GLAS",416.53739999999999]
[null,"X5-PUREGL-23.150","XINNIX X5D50 Afwerkset H 2315 MS 50 GLAS",159.834]
[null,"X5-PUREGL-27.150","XINNIX X5D50 Afwerkset H 2715 MS 50 GLAS",248.6046]
[null,"X5-PUREGL-30.150","XINNIX X5D50 Afwerkset H 3015 MS 50 GLAS",266.29140000000001]
[null,"X5-PUREGL-23.175","XINNIX X5D50 Afwerkset H 2315 MS 75 GLAS",159.834]
[null,"X5-PUREGL-27.175","XINNIX X5D50 Afwerkset H 2715 MS 75 GLAS",248.6046]
[null,"X5-PUREGL-30.175","XINNIX X5D50 Afwerkset H 3015 MS 75 GLAS",266.29140000000001]
[null,"X5D50-XINNIX/D.1","Afwerkset X5D50 voor dubbele beplating voor dubbele deuren (vrije doorgang <2400 mm)",109.0074]
[null,"X5D50-XINNIX/D.2","Afwerkset X5D50 voor dubbele beplating voor dubbele deuren (vrije doorgang 2400-4000 mm)",218.0454]

{"sheet":"GREPEN","index":8,"n_rows":48,"n_cols":30,"rows_kept":48,"cut":false,"hidden":true,"merged":[]}
[null,null,null,null,null,null,12,null,null,null,null,null,null,null,null,null,null,null,null,null,null,null,null,null,"Kies hier uw greep"]
[10,"XA-3010.I","XINNIX INWERKSCHELP HALVE MAAN INOX 10 MM",71.5428,null,null,null,null,null,null,null,null,null,null,null,null,null,null,null,null,null,null,null,null,{"$f":"VLOOKUP('X5 CALCULATOR'!E21,GREPEN!G25:Z31,2,FALSE)","v":{"$error":"#N/A"}}]
[12,"XA-3012.I","XINNIX INWERKSCHELP HALVE MAAN INOX 12 MM",71.5428,null,null,null,null,null,null,null,null,null,null,null,null,null,null,null,null,null,null,null,null,{"$f":"VLOOKUP('X5 CALCULATOR'!E21,GREPEN!G25:Z31,3,FALSE)","v":{"$error":"#N/A"}}]
[35,"XA-3035.I","XINNIX INWERKSCHELP HALVE MAAN INOX 35 MM",88.158600000000007,null,null,null,null,null,null,null,null,null,null,null,null,null,null,null,null,null,null,null,null,{"$f":"VLOOKUP('X5 CALCULATOR'!E21,GREPEN!G25:Z31,4,FALSE)","v":{"$error":"#N/A"}}]
[40,"XA-3040.W","XINNIX INWERKSCHELP HALVE MAAN WIT 40 MM",85.598399999999998,null,null,null,null,null,null,null,null,null,null,null,null,null,null,null,null,null,null,null,null,{"$f":"VLOOKUP('X5 CALCULATOR'!E21,GREPEN!G25:Z31,5,FALSE)","v":{"$error":"#N/A"}}]
[40,"XA-3040.B","XINNIX INWERKSCHELP HALVE MAAN ZWART 40 MM",85.598399999999998,null,null,null,null,null,null,null,null,null,null,null,null,null,null,null,null,null,null,null,null,{"$f":"VLOOKUP('X5 CALCULATOR'!E21,GREPEN!G25:Z31,6,FALSE)","v":{"$error":"#N/A"}}]
[40,"XA-3040.I","XINNIX INWERKSCHELP HALVE MAAN INOX 40 MM",85.598399999999998,null,null,null,null,null,null,null,null,null,null,null,null,null,null,null,null,null,null,null,null,{"$f":"VLOOKUP('X5 CALCULATOR'!E21,GREPEN!G25:Z31,7,FALSE)","v":{"$error":"#N/A"}}]
[45,"XA-3045","XINNIX INWERKSCHELP HALVE MAAN INOX 45 MM",99.664199999999994,null,null,null,null,null,null,null,null,null,null,null,null,null,null,null,null,null,null,null,null,{"$f":"VLOOKUP('X5 CALCULATOR'!E21,GREPEN!G25:Z31,8,FALSE)","v":{"$error":"#N/A"}}]
[50,"XA-3050.I","XINNIX INWERKSCHELP HALVE MAAN INOX 50 MM",114.9948,null,null,null,null,null,null,null,null,null,null,null,null,null,null,null,null,null,null,null,null,{"$f":"VLOOKUP('X5 CALCULATOR'!E21,GREPEN!G25:Z31,9,FALSE)","v":{"$error":"#N/A"}}]
[60,"XA-3060.I","XINNIX INWERKSCHELP HALVE MAAN INOX 60 MM",121.39020000000001,null,null,null,null,null,null,null,null,null,null,null,null,null,null,null,null,null,null,null,null,{"$f":"VLOOKUP('X5 CALCULATOR'!E21,GREPEN!G25:Z31,10,FALSE)","v":{"$error":"#N/A"}}]
[40,"XA-3100.I","XINNIX INWERKSLOT INOX ROND",127.755,null,null,null,null,null,null,null,null,null,null,null,null,null,null,null,null,null,null,null,null,{"$f":"VLOOKUP('X5 CALCULATOR'!E21,GREPEN!G25:Z31,11,FALSE)","v":{"$error":"#N/A"}}]
[40,"XA-3105.I","XINNIX INWERKSLOT INOX",296.41200000000003,null,null,null,null,null,null,null,null,null,null,null,null,null,null,null,null,null,null,null,null,{"$f":"VLOOKUP('X5 CALCULATOR'!E21,GREPEN!G25:Z31,12,FALSE)","v":{"$error":"#N/A"}}]
[40,"XA-3300.I","XINNIX INWERKSLOT WC RECHTHOEK INOX",141.82079999999999,null,null,null,null,null,null,null,null,null,null,null,null,null,null,null,null,null,null,null,null,{"$f":"VLOOKUP('X5 CALCULATOR'!E21,GREPEN!G25:Z31,13,FALSE)","v":{"$error":"#N/A"}}]
[35,"XA-3335.I","XINNIX INWERKSCHELP RECHTHOEK INOX 35 MM",85.598399999999998,null,null,null,null,null,null,null,null,null,null,null,null,null,null,null,null,null,null,null,null,{"$f":"VLOOKUP('X5 CALCULATOR'!E21,GREPEN!G25:Z31,14,FALSE)","v":{"$error":"#N/A"}}]
[40,"XA-3340.W","XINNIX INWERKSCHELP RECHTHOEK WIT 40 MM",86.414400000000001,null,null,null,null,null,null,null,null,null,null,null,null,null,null,null,null,null,null,null,null,{"$f":"VLOOKUP('X5 CALCULATOR'!E21,GREPEN!G25:Z31,15,FALSE)","v":{"$error":"#N/A"}}]
[40,"XA-3340.B","XINNIX INWERKSCHELP RECHTHOEK ZWART 40 MM",85.598399999999998,null,null,null,null,null,null,null,null,null,null,null,null,null,null,null,null,null,null,null,null,{"$f":"VLOOKUP('X5 CALCULATOR'!E21,GREPEN!G25:Z31,16,FALSE)","v":{"$error":"#N/A"}}]
[40,"XA-3340.I","XINNIX INWERKSCHELP RECHTHOEK INOX 40 MM",85.598399999999998,null,null,null,null,null,null,null,null,null,null,null,null,null,null,null,null,null,null,null,null,{"$f":"VLOOKUP('X5 CALCULATOR'!E21,GREPEN!G25:Z31,17,FALSE)","v":{"$error":"#N/A"}}]
[45,"XA-3345.I","XINNIX INWERKSCHELP RECHTHOEK INOX 45 MM",91.98360000000001,null,null,null,null,null,null,null,null,null,null,null,null,null,null,null,null,null,null,null,null,{"$f":"VLOOKUP('X5 CALCULATOR'!E21,GREPEN!G25:Z31,18,FALSE)","v":{"$error":"#N/A"}}]
[50,"XA-3350.W","XINNIX INWERKSCHELP RECHTHOEK WIT 50 MM",99.664199999999994,null,null,null,null,null,null,null,null,null,null,null,null,null,null,null,null,null,null,null,null,{"$f":"VLOOKUP('X5 CALCULATOR'!E21,GREPEN!G25:Z31,19,FALSE)","v":{"$error":"#N/A"}}]
[50,"XA-3350.B","XINNIX INWERKSCHELP RECHTHOEK ZWART 50 MM",104.8152,null,null,null,null,null,null,null,null,null,null,null,null,null,null,null,null,null,null,null,null,{"$f":"VLOOKUP('X5 CALCULATOR'!E21,GREPEN!G26:AD32,20,FALSE)","v":{"$error":"#N/A"}}]
[50,"XA-3350.I","XINNIX INWERKSCHELP RECHTHOEK INOX 50 MM",99.664199999999994,null,null,null,null,null,null,null,null,null,null,null,null,null,null,null,null,null,null,null,null,{"$f":"VLOOKUP('X5 CALCULATOR'!E21,GREPEN!G27:AD33,21,FALSE)","v":{"$error":"#N/A"}}]
[40,"XA-3723.W","XINNIX INWERKSCHELP RECHTHOEK WIT 40 MM - RECHTE HOEKEN",104.8152,null,null,null,null,null,null,null,null,null,null,null,null,null,null,null,null,null,null,null,null,{"$f":"VLOOKUP('X5 CALCULATOR'!E21,GREPEN!G28:AD34,22,FALSE)","v":{"$error":"#N/A"}}]
[40,"XA-3723.B","XINNIX INWERKSCHELP RECHTHOEK ZWART 40 MM - RECHTE HOEKEN",85.598399999999998,null,null,null,null,null,null,null,null,null,null,null,null,null,null,null,null,null,null,null,null,{"$f":"VLOOKUP('X5 CALCULATOR'!E21,GREPEN!G29:AD35,23,FALSE)","v":{"$error":"#N/A"}}]
[40,"XA-3723.I","XINNIX INWERKSCHELP RECHTHOEK INOX 40 MM - RECHTE HOEKEN",85.598399999999998]
[50,"XA-3739.B","XINNIX INWERKSCHELP RECHTHOEK INOX 50 MM - RECHTE HOEKEN",121.39020000000001,null,null,10,"XA-3010.I","XA-3410.I","XA-3710.B","XA-3710.I"]
[50,"XA-3739.I","XINNIX INWERKSCHELP RECHTHOEK INOX 50 MM - RECHTE HOEKEN",121.39020000000001,null,null,12,"XA-3012.I"]
[10,"XA-3410.I","XINNIX INWERKSCHELP OPEN HALVE MAAN INOX 10 MM",74.103000000000009,null,null,35,"XA-3035.I","XA-3335.I","XA-3435.I"]
[35,"XA-3435.I","XINNIX INWERKSCHELP OPEN HALVE MAAN INOX 35 MM",94.533600000000007,null,null,40,"XA-3040.W","XA-3040.B","XA-3040.I","XA-3100.I","XA-3105.I","XA-3300.I","XA-3340.W","XA-3340.B","XA-3340.I","XA-3723.W","XA-3723.B","XA-3723.I","XA-3440.I","XA-3772.B","XA-3772.I","XA-3703.I","XA-3738.I","XA-3102.B","XA-3102.W","XA-3101.B","XA-3101.I","XA-3301.B","XA-3301.I"]
[40,"XA-3440.I","XINNIX INWERKSCHELP OPEN HALVE MAAN INOX 40 MM",99.664199999999994,null,null,45,"XA-3045","XA-3345.I","XA-3445.I","XA-3777.I","XA-3704.I","XA-3100.I","XA-3300.I","XA-3101.B","XA-3101.I","XA-3301.B","XA-3301.I"]
[45,"XA-3445.I","XINNIX INWERKSCHELP OPEN HALVE MAAN INOX 45 MM",106.68180000000001,null,null,50,"XA-3050.I","XA-3350.W","XA-3350.B","XA-3350.I","XA-3739.B","XA-3739.I","XA-3778.W","XA-3778.B","XA-3778.I","XA-3705.I","XA-3101.B","XA-3101.I","XA-3301.B","XA-3301.I","XA-3100.I","XA-3300.I"]
[40,"XA-3772.B","Horizontale inbouwgreep met gelaste rechte hoeken",118.8198,null,null,60,"XA-3060.I","XA-3100.I","XA-3300.I"]
[40,"XA-3772.I","Horizontale inbouwgreep met gelaste rechte hoeken",118.8198]
[45,"XA-3777.I","Horizontale inbouwgreep met gelaste rechte hoeken",118.8198]
[50,"XA-3778.W","Horizontale inbouwgreep met gelaste rechte hoeken WIT",118.8198]
[50,"XA-3778.B","Horizontale inbouwgreep met gelaste rechte hoeken ZWART",118.8198]
[50,"XA-3778.I","Horizontale inbouwgreep met gelaste rechte hoeken INOX",118.8198]
[40,"XA-3703.I","XINNIX INWERKSCHELP RECHTHOEK INOX 120x55x40 mm",121.39020000000001]
[43,"XA-3704.I","XINNIX INWERKSCHELP RECHTHOEK INOX 120x55x43 mm",135.43559999999999]
[50,"XA-3705.I","XINNIX INWERKSCHELP RECHTHOEK INOX 120x55x50 mm",141.63720000000001]
[10,"XA-3710.B","XINNIX INWERKSCHELP RECHTHOEK ZWART GLAS 10 mm",141.82079999999999]
[10,"XA-3710.I","XINNIX INWERKSCHELP RECHTHOEK INOX GLAS 10 mm",141.82079999999999]
[40,"XA-3738.I","XINNIX INWERKSCHELP RECHTHOEK INOX",434.39760000000001]
[50,"XA-3101.B","XINNIX INWERKSLOT WC RECHTHOEK ZWART",127.755]
[50,"XA-3101.I","XINNIX INWERKSLOT WC RECHTHOEK INOX",127.755]
[50,"XA-3301.B","XINNIX INWERKSLOT WC RECHTHOEK ZWART",141.82079999999999]
[50,"XA-3301.I","XINNIX INWERKSLOT WC RECHTHOEK INOX",141.82079999999999]
[40,"XA-3102.B","XINNIX INWERKSLOT WC RECHTHOEK ZWART",127.755]
[40,"XA-3102.W","XINNIX INWERKSLOT WC RECHTHOEK WIT",127.755]

{"sheet":"OPMERKINGEN","index":9,"n_rows":34,"n_cols":2,"rows_kept":34,"cut":false,"hidden":true,"merged":[]}
[]
[null,"Bij Hp>2315 mm neem dubbele beplating  X5D/X5D32"]
[null,"Bij Hp>3015 mm neem dubbele beplating X5D32"]
[null,"Bij Hp>2410 mm WALL met dubbele bepalting X5D/X5D32"]
[]
[null,"Extra set middenstaanders nodig"]
[null,"Bij Hp>2315 mm + MS75 op eigen risico (wij raden MS100 aan)"]
[]
[null,"Schuifdeur voor glas met MD 50 maar tot B 1030"]
[null,"MS 50 enkel bij glas mogelijk "]
[]
[null,"X5 afwerking XINNIX met MS 75 niet hoger dan 2315 mm"]
[null,"X5 afwerking XINNIX met MS 100 niet hoger dan 2315 mm"]
[null,"X5D afwerking XINNIX met MS75/100 en X5D32 met MS75 niet hoger dan 3015 mm"]
[null,"X5 MS75/X5D MS75/X5D MS 100 afwerking PURE niet hoger dan 3015 mm"]
[null,"X5 MS 75/X5D MS 50 niet hoger dan 2315 mm"]
[null,"X5D32 MS 50 niet hoger dan 2715 mm"]
[null,"De combinatie MS 50 en hout is niet mogelijk"]
[]
[null,"Deze hoogte is te hoog en niet mogelijk"]
[null,"Deze breedte is te breed en niet mogelijk"]
[]
[null,"Glazen deur moet altijd met een deur van 10 of 12 mm"]
[null,"Bij een glazen deur met MS50 heb je dubbele beplating nodig"]
[null,"MS 75 + Deurblad>40 mm niet mogelijk!!!"]
[null,"Geen X5 voor glas met MS100 beschikbaar"]
[null,"MS 75 + Wp>1230 mm op eigen risico (wij raden MS 100 aan)"]
[null,"Bij MS50 zit geen softclose"]
[null,"Wp>1030 mm + X5 op eigen risico (wij raden X5D/X5D32 aan)"]
[]
[]
[null,"Een dubbele deur met Hawa heeft geen afwerkset(box 3)."]
[null,"Het is niet mogelijk om een Hawa rail met een glazen deur te combineren!"]
[null,"Neem bij een Xinnix Double Soft Slide MS75!"]

{"sheet":"INVULVELDEN","index":10,"n_rows":53,"n_cols":7,"rows_kept":53,"cut":false,"hidden":true,"merged":[]}
[]
["…"]
["Enkele (<2315) X5"]
["Dubbel X5D"]
["Dubbel X5D32"]
["Dubbel X5D50"]
["…",null,"Xinnix","Hout","Glas"]
[{"$f":"VLOOKUP('X5 CALCULATOR'!E5,C7:E9,2,FALSE)","v":{"$error":"#N/A"}},null,"Hawa","Hout"]
[{"$f":"VLOOKUP('X5 CALCULATOR'!E5,C7:E9,3,FALSE)","v":{"$error":"#N/A"}},null,"Xinnix Double Soft Slide","Hout","Glas"]
[]
["…"]
["Enkele"]
["Dubbele"]
[]
["…"]
["Pocket"]
["Wall"]
[]
["…"]
[{"$f":"VLOOKUP('X5 CALCULATOR'!E5,C20:E22,2,FALSE)","v":{"$error":"#N/A"}},null,"Xinnix","XINNIX","PURE"]
[{"$f":"VLOOKUP('X5 CALCULATOR'!E5,C20:E22,3,FALSE)","v":{"$error":"#N/A"}},null,"Hawa","PURE"]
[null,null,"Xinnix Double Soft Slide","XINNIX","PURE"]
["…"]
[{"$f":"VLOOKUP('X5 CALCULATOR'!E9,A37:G38,2,FALSE)","v":{"$error":"#N/A"}}]
[{"$f":"VLOOKUP('X5 CALCULATOR'!E9,A37:G38,3,FALSE)","v":{"$error":"#N/A"}}]
[{"$f":"VLOOKUP('X5 CALCULATOR'!E9,A37:G38,4,FALSE)","v":{"$error":"#N/A"}}]
[{"$f":"VLOOKUP('X5 CALCULATOR'!E9,A37:G38,5,FALSE)","v":{"$error":"#N/A"}}]
[{"$f":"VLOOKUP('X5 CALCULATOR'!E9,A37:G38,6,FALSE)","v":{"$error":"#N/A"}}]
[{"$f":"VLOOKUP('X5 CALCULATOR'!E9,A37:G38,7,FALSE)","v":{"$error":"#N/A"}}]
[]
[]
["…"]
[{"$f":"VLOOKUP('X5 CALCULATOR'!E9,C33:E34,2,FALSE)","v":{"$error":"#N/A"}},null,"Hout",75,100]
[{"$f":"VLOOKUP('X5 CALCULATOR'!E9,C33:E34,3,FALSE)","v":{"$error":"#N/A"}},null,"Glas",50,75]
[]
[]
["Glas",10,12]
["Hout",35,40,43,45,50,60]
[]
["…"]
["Glas"]
["Hout"]
[]
[]
["Nee"]
["Parallel"]
["Symmetrie"]
[]
[]
["…"]
["Xinnix"]
["Xinnix Double Soft Slide"]
["Hawa"]